Workbook

Sheet Start
C3: חודש ושנה | D3: 2025-10-01
C5: תיקיית יעד | D5: ="I:\EXCEL\account\Name\ALL\דוחות חודשיים לאוצר"&"\"&YEAR(DATE)&"\"&IF(LEN(MONTH(DATE))=2,MONTH(DATE),"0"&MONTH(DATE))&YEAR(DATE) -> I:\EXCEL\account\Name\ALL\דוחות חודשיים לאוצר\2025\102025
C7: שם קופה | D7: מספר מ"ה | G7: הוראות הפעלה
C8: קלע קרן השתלמות לעובדים סוציאלים מסלול כללי | D8: 378 | G8: 1 | H8: לעדכן חודש ושנה D3
C9: 2235קלע קרן השתלמות לעובדים סוציאלים מסלול אגח עד 25% מניות | D9: 1433 | G9: 2 | H9: לעדכן בעמודה D את רשימת מספרי האוצר של הקופות שמעוניינים להפיק
C10: לא נמצאה קופה | D10: 15482 | G10: 3 | H10: ללחוץ על "הפעל דוח הרכב נכסים"

Sheet הרכב נכסים
A1: =MONTH(DATE)&"/"&YEAR(DATE) -> 10/2025 | B1: קלע קרן השתלמות לעובדים סוציאלים מסלול כללי | C1: 2235קלע קרן השתלמות לעובדים סוציאלים מסלול אגח עד 25% מניות | D1: קלע קרן השתלמות לעובדים סוציאלים מסלול עוקב מדד
A2: התפלגות השקעות | B2: 378 | C2: 1433 | D2: 15482
A3: אג"ח ממשלתיות סחירות | B3: =IFERROR(SUMIFS(DB!$C:$C,DB!$D:$D,'הרכב נכסים'!$A3,DB!$A:$A,'הרכב נכסים'!B$2)/SUMIFS(DB!$C:$C,DB!$B:$B,"DE1",DB!$A:$A,'הרכב נכסים'!B$2),"") -> 0.1752274761 | C3: =IFERROR(SUMIFS(DB!$C:$C,DB!$D:$D,'הרכב נכסים'!$A3,DB!$A:$A,'הרכב נכסים'!C$2)/SUMIFS(DB!$C:$C,DB!$B:$B,"DE1",DB!$A:$A,'הרכב נכסים'!C$2),"") -> 0.4528789355 | D3: =IFERROR(SUMIFS(DB!$C:$C,DB!$D:$D,'הרכב נכסים'!$A3,DB!$A:$A,'הרכב נכסים'!D$2)/SUMIFS(DB!$C:$C,DB!$B:$B,"DE1",DB!$A:$A,'הרכב נכסים'!D$2),"") -> 0
A4: מניות וני"ע סחירים אחרים | B4: =IFERROR(SUMIFS(DB!$C:$C,DB!$D:$D,'הרכב נכסים'!$A4,DB!$A:$A,'הרכב נכסים'!B$2)/SUMIFS(DB!$C:$C,DB!$B:$B,"DE1",DB!$A:$A,'הרכב נכסים'!B$2),"") -> 0.5092652857 | C4: =IFERROR(SUMIFS(DB!$C:$C,DB!$D:$D,'הרכב נכסים'!$A4,DB!$A:$A,'הרכב נכסים'!C$2)/SUMIFS(DB!$C:$C,DB!$B:$B,"DE1",DB!$A:$A,'הרכב נכסים'!C$2),"") -> 0.3380973265 | D4: =IFERROR(SUMIFS(DB!$C:$C,DB!$D:$D,'הרכב נכסים'!$A4,DB!$A:$A,'הרכב נכסים'!D$2)/SUMIFS(DB!$C:$C,DB!$B:$B,"DE1",DB!$A:$A,'הרכב נכסים'!D$2),"") -> 0.9507770584
A5: פקדונות והלוואות | B5: =IFERROR(SUMIFS(DB!$C:$C,DB!$D:$D,'הרכב נכסים'!$A5,DB!$A:$A,'הרכב נכסים'!B$2)/SUMIFS(DB!$C:$C,DB!$B:$B,"DE1",DB!$A:$A,'הרכב נכסים'!B$2),"") -> 0.01482632486 | C5: =IFERROR(SUMIFS(DB!$C:$C,DB!$D:$D,'הרכב נכסים'!$A5,DB!$A:$A,'הרכב נכסים'!C$2)/SUMIFS(DB!$C:$C,DB!$B:$B,"DE1",DB!$A:$A,'הרכב נכסים'!C$2),"") -> 0 | D5: =IFERROR(SUMIFS(DB!$C:$C,DB!$D:$D,'הרכב נכסים'!$A5,DB!$A:$A,'הרכב נכסים'!D$2)/SUMIFS(DB!$C:$C,DB!$B:$B,"DE1",DB!$A:$A,'הרכב נכסים'!D$2),"") -> 0
A6: אג"ח קונצרניות סחירות | B6: =IFERROR(SUMIFS(DB!$C:$C,DB!$D:$D,'הרכב נכסים'!$A6,DB!$A:$A,'הרכב נכסים'!B$2)/SUMIFS(DB!$C:$C,DB!$B:$B,"DE1",DB!$A:$A,'הרכב נכסים'!B$2),"") -> 0.1571921207 | C6: =IFERROR(SUMIFS(DB!$C:$C,DB!$D:$D,'הרכב נכסים'!$A6,DB!$A:$A,'הרכב נכסים'!C$2)/SUMIFS(DB!$C:$C,DB!$B:$B,"DE1",DB!$A:$A,'הרכב נכסים'!C$2),"") -> 0.1885782105 | D6: =IFERROR(SUMIFS(DB!$C:$C,DB!$D:$D,'הרכב נכסים'!$A6,DB!$A:$A,'הרכב נכסים'!D$2)/SUMIFS(DB!$C:$C,DB!$B:$B,"DE1",DB!$A:$A,'הרכב נכסים'!D$2),"") -> 0
A7: מזומנים ושווי מזומנים | B7: =IFERROR(SUMIFS(DB!$C:$C,DB!$D:$D,'הרכב נכסים'!$A7,DB!$A:$A,'הרכב נכסים'!B$2)/SUMIFS(DB!$C:$C,DB!$B:$B,"DE1",DB!$A:$A,'הרכב נכסים'!B$2),"") -> 0.00942644809 | C7: =IFERROR(SUMIFS(DB!$C:$C,DB!$D:$D,'הרכב נכסים'!$A7,DB!$A:$A,'הרכב נכסים'!C$2)/SUMIFS(DB!$C:$C,DB!$B:$B,"DE1",DB!$A:$A,'הרכב נכסים'!C$2),"") -> 0.01951933026 | D7: =IFERROR(SUMIFS(DB!$C:$C,DB!$D:$D,'הרכב נכסים'!$A7,DB!$A:$A,'הרכב נכסים'!D$2)/SUMIFS(DB!$C:$C,DB!$B:$B,"DE1",DB!$A:$A,'הרכב נכסים'!D$2),"") -> 0.04931185205
A8: השקעות אחרות | B8: =IFERROR(SUMIFS(DB!$C:$C,DB!$D:$D,'הרכב נכסים'!$A8,DB!$A:$A,'הרכב נכסים'!B$2)/SUMIFS(DB!$C:$C,DB!$B:$B,"DE1",DB!$A:$A,'הרכב נכסים'!B$2),"") -> 0.1340623432 | C8: =IFERROR(SUMIFS(DB!$C:$C,DB!$D:$D,'הרכב נכסים'!$A8,DB!$A:$A,'הרכב נכסים'!C$2)/SUMIFS(DB!$C:$C,DB!$B:$B,"DE1",DB!$A:$A,'הרכב נכסים'!C$2),"") -> 0.0009264194001 | D8: =IFERROR(SUMIFS(DB!$C:$C,DB!$D:$D,'הרכב נכסים'!$A8,DB!$A:$A,'הרכב נכסים'!D$2)/SUMIFS(DB!$C:$C,DB!$B:$B,"DE1",DB!$A:$A,'הרכב נכסים'!D$2),"") -> -8.795444724e-05
B9: =SUM(B3:B8) -> 0.9999999986 | C9: =SUM(C3:C8) -> 1.000000222 | D9: 1.000000956
A10: סה"כ נכסים אלפי ₪ | B10: =SUMIFS(DB!$C:$C,DB!$B:$B,"DE1",DB!$A:$A,'הרכב נכסים'!B$2) -> 699105.213 | C10: =SUMIFS(DB!$C:$C,DB!$B:$B,"DE1",DB!$A:$A,'הרכב נכסים'!C$2) -> 9004.561 | D10: =SUMIFS(DB!$C:$C,DB!$B:$B,"DE1",DB!$A:$A,'הרכב נכסים'!D$2) -> 1045.996
A11: תשואות
A12: תשואה מצטברת נומינלית ברוטו מתחילת שנה | B12: =SUMIFS(DB!$C:$C,DB!$B:$B,"KT51",DB!$A:$A,'הרכב נכסים'!B$2) -> 12.514 | C12: =SUMIFS(DB!$C:$C,DB!$B:$B,"KT51",DB!$A:$A,'הרכב נכסים'!C$2) -> 6.743 | D12: =SUMIFS(DB!$C:$C,DB!$B:$B,"KT51",DB!$A:$A,'הרכב נכסים'!D$2) -> 10.61
A13: תשואה מצטברת נומינלית ברוטו ב-12 החודשים האחרונים | B13: 15.8 | C13: 8.89 | D13: *
A15: * המסלול פעיל החל מחודש אפריל 2025

Sheet DB
A1: ProdNum | B1: Data1
A2: 378 | B2: DE1 | C2: 699105.213 | D2: =IFERROR(IF(INDEX(HAMARA!I:I,MATCH(B2,HAMARA!E:E,0))=0,"",INDEX(HAMARA!I:I,MATCH(B2,HAMARA!E:E,0))),"") -> 
A3: 378 | B3: DA12 | C3: 5000.596 | D3: =IFERROR(IF(INDEX(HAMARA!I:I,MATCH(B3,HAMARA!E:E,0))=0,"",INDEX(HAMARA!I:I,MATCH(B3,HAMARA!E:E,0))),"") -> מזומנים ושווי מזומנים
A4: 378 | B4: DT11 | C4: 1589.483 | D4: =IFERROR(IF(INDEX(HAMARA!I:I,MATCH(B4,HAMARA!E:E,0))=0,"",INDEX(HAMARA!I:I,MATCH(B4,HAMARA!E:E,0))),"") -> מזומנים ושווי מזומנים
A5: 378 | B5: DA10 | C5: 0 | D5: =IFERROR(IF(INDEX(HAMARA!I:I,MATCH(B5,HAMARA!E:E,0))=0,"",INDEX(HAMARA!I:I,MATCH(B5,HAMARA!E:E,0))),"") -> מזומנים ושווי מזומנים
A6: 378 | B6: DT420 | C6: 0 | D6: =IFERROR(IF(INDEX(HAMARA!I:I,MATCH(B6,HAMARA!E:E,0))=0,"",INDEX(HAMARA!I:I,MATCH(B6,HAMARA!E:E,0))),"") -> מזומנים ושווי מזומנים
A7: 378 | B7: DT421 | C7: 0 | D7: =IFERROR(IF(INDEX(HAMARA!I:I,MATCH(B7,HAMARA!E:E,0))=0,"",INDEX(HAMARA!I:I,MATCH(B7,HAMARA!E:E,0))),"") -> מזומנים ושווי מזומנים
A8: 378 | B8: DT422 | C8: 0 | D8: =IFERROR(IF(INDEX(HAMARA!I:I,MATCH(B8,HAMARA!E:E,0))=0,"",INDEX(HAMARA!I:I,MATCH(B8,HAMARA!E:E,0))),"") -> מזומנים ושווי מזומנים
A9: 378 | B9: DT423 | C9: 0 | D9: =IFERROR(IF(INDEX(HAMARA!I:I,MATCH(B9,HAMARA!E:E,0))=0,"",INDEX(HAMARA!I:I,MATCH(B9,HAMARA!E:E,0))),"") -> מזומנים ושווי מזומנים
A10: 378 | B10: DT191 | C10: 0 | D10: =IFERROR(IF(INDEX(HAMARA!I:I,MATCH(B10,HAMARA!E:E,0))=0,"",INDEX(HAMARA!I:I,MATCH(B10,HAMARA!E:E,0))),"") -> מזומנים ושווי מזומנים
A11: 378 | B11: DT424 | C11: 0 | D11: =IFERROR(IF(INDEX(HAMARA!I:I,MATCH(B11,HAMARA!E:E,0))=0,"",INDEX(HAMARA!I:I,MATCH(B11,HAMARA!E:E,0))),"") -> מזומנים ושווי מזומנים
A12: 378 | B12: DT13 | C12: 34482.292 | D12: =IFERROR(IF(INDEX(HAMARA!I:I,MATCH(B12,HAMARA!E:E,0))=0,"",INDEX(HAMARA!I:I,MATCH(B12,HAMARA!E:E,0))),"") -> אג"ח ממשלתיות סחירות
A13: 378 | B13: DT15 | C13: 64311.1 | D13: =IFERROR(IF(INDEX(HAMARA!I:I,MATCH(B13,HAMARA!E:E,0))=0,"",INDEX(HAMARA!I:I,MATCH(B13,HAMARA!E:E,0))),"") -> אג"ח ממשלתיות סחירות
A14: 378 | B14: DT16 | C14: 0 | D14: =IFERROR(IF(INDEX(HAMARA!I:I,MATCH(B14,HAMARA!E:E,0))=0,"",INDEX(HAMARA!I:I,MATCH(B14,HAMARA!E:E,0))),"") -> אג"ח ממשלתיות סחירות
A15: 378 | B15: DT14 | C15: 0 | D15: =IFERROR(IF(INDEX(HAMARA!I:I,MATCH(B15,HAMARA!E:E,0))=0,"",INDEX(HAMARA!I:I,MATCH(B15,HAMARA!E:E,0))),"") -> אג"ח ממשלתיות סחירות
A16: 378 | B16: DA9 | C16: 23709.05 | D16: =IFERROR(IF(INDEX(HAMARA!I:I,MATCH(B16,HAMARA!E:E,0))=0,"",INDEX(HAMARA!I:I,MATCH(B16,HAMARA!E:E,0))),"") -> אג"ח ממשלתיות סחירות
A17: 378 | B17: DT7 | C17: 0 | D17: =IFERROR(IF(INDEX(HAMARA!I:I,MATCH(B17,HAMARA!E:E,0))=0,"",INDEX(HAMARA!I:I,MATCH(B17,HAMARA!E:E,0))),"") -> השקעות אחרות
A18: 378 | B18: DA8 | C18: 0 | D18: =IFERROR(IF(INDEX(HAMARA!I:I,MATCH(B18,HAMARA!E:E,0))=0,"",INDEX(HAMARA!I:I,MATCH(B18,HAMARA!E:E,0))),"") -> השקעות אחרות
A19: 378 | B19: DT17 | C19: 0 | D19: =IFERROR(IF(INDEX(HAMARA!I:I,MATCH(B19,HAMARA!E:E,0))=0,"",INDEX(HAMARA!I:I,MATCH(B19,HAMARA!E:E,0))),"") -> אג"ח ממשלתיות סחירות
A20: 378 | B20: DT26 | C20: 0 | D20: =IFERROR(IF(INDEX(HAMARA!I:I,MATCH(B20,HAMARA!E:E,0))=0,"",INDEX(HAMARA!I:I,MATCH(B20,HAMARA!E:E,0))),"") -> אג"ח ממשלתיות סחירות
A21: 378 | B21: DT425 | C21: 0 | D21: =IFERROR(IF(INDEX(HAMARA!I:I,MATCH(B21,HAMARA!E:E,0))=0,"",INDEX(HAMARA!I:I,MATCH(B21,HAMARA!E:E,0))),"") -> השקעות אחרות
A22: 378 | B22: DT426 | C22: 0 | D22: =IFERROR(IF(INDEX(HAMARA!I:I,MATCH(B22,HAMARA!E:E,0))=0,"",INDEX(HAMARA!I:I,MATCH(B22,HAMARA!E:E,0))),"") -> השקעות אחרות
A23: 378 | B23: DT427 | C23: 0 | D23: =IFERROR(IF(INDEX(HAMARA!I:I,MATCH(B23,HAMARA!E:E,0))=0,"",INDEX(HAMARA!I:I,MATCH(B23,HAMARA!E:E,0))),"") -> אג"ח קונצרניות סחירות
A24: 378 | B24: DT561 | C24: 0 | D24: =IFERROR(IF(INDEX(HAMARA!I:I,MATCH(B24,HAMARA!E:E,0))=0,"",INDEX(HAMARA!I:I,MATCH(B24,HAMARA!E:E,0))),"") -> אג"ח קונצרניות סחירות
A25: 378 | B25: DT560 | C25: 0 | D25: =IFERROR(IF(INDEX(HAMARA!I:I,MATCH(B25,HAMARA!E:E,0))=0,"",INDEX(HAMARA!I:I,MATCH(B25,HAMARA!E:E,0))),"") -> אג"ח קונצרניות סחירות
A26: 378 | B26: DT428 | C26: 0 | D26: =IFERROR(IF(INDEX(HAMARA!I:I,MATCH(B26,HAMARA!E:E,0))=0,"",INDEX(HAMARA!I:I,MATCH(B26,HAMARA!E:E,0))),"") -> אג"ח קונצרניות סחירות
A27: 378 | B27: DT563 | C27: 0 | D27: =IFERROR(IF(INDEX(HAMARA!I:I,MATCH(B27,HAMARA!E:E,0))=0,"",INDEX(HAMARA!I:I,MATCH(B27,HAMARA!E:E,0))),"") -> אג"ח קונצרניות סחירות
A28: 378 | B28: DT562 | C28: 0 | D28: =IFERROR(IF(INDEX(HAMARA!I:I,MATCH(B28,HAMARA!E:E,0))=0,"",INDEX(HAMARA!I:I,MATCH(B28,HAMARA!E:E,0))),"") -> אג"ח קונצרניות סחירות
A29: 378 | B29: DT429 | C29: 0 | D29: =IFERROR(IF(INDEX(HAMARA!I:I,MATCH(B29,HAMARA!E:E,0))=0,"",INDEX(HAMARA!I:I,MATCH(B29,HAMARA!E:E,0))),"") -> אג"ח קונצרניות סחירות
A30: 378 | B30: DT565 | C30: 0 | D30: =IFERROR(IF(INDEX(HAMARA!I:I,MATCH(B30,HAMARA!E:E,0))=0,"",INDEX(HAMARA!I:I,MATCH(B30,HAMARA!E:E,0))),"") -> אג"ח קונצרניות סחירות
A31: 378 | B31: DT564 | C31: 0 | D31: =IFERROR(IF(INDEX(HAMARA!I:I,MATCH(B31,HAMARA!E:E,0))=0,"",INDEX(HAMARA!I:I,MATCH(B31,HAMARA!E:E,0))),"") -> אג"ח קונצרניות סחירות
A32: 378 | B32: DT430 | C32: 0 | D32: =IFERROR(IF(INDEX(HAMARA!I:I,MATCH(B32,HAMARA!E:E,0))=0,"",INDEX(HAMARA!I:I,MATCH(B32,HAMARA!E:E,0))),"") -> השקעות אחרות
A33: 378 | B33: DT567 | C33: 0 | D33: =IFERROR(IF(INDEX(HAMARA!I:I,MATCH(B33,HAMARA!E:E,0))=0,"",INDEX(HAMARA!I:I,MATCH(B33,HAMARA!E:E,0))),"") -> השקעות אחרות
A34: 378 | B34: DT566 | C34: 0 | D34: =IFERROR(IF(INDEX(HAMARA!I:I,MATCH(B34,HAMARA!E:E,0))=0,"",INDEX(HAMARA!I:I,MATCH(B34,HAMARA!E:E,0))),"") -> השקעות אחרות
A35: 378 | B35: DT431 | C35: 0 | D35: =IFERROR(IF(INDEX(HAMARA!I:I,MATCH(B35,HAMARA!E:E,0))=0,"",INDEX(HAMARA!I:I,MATCH(B35,HAMARA!E:E,0))),"") -> השקעות אחרות
A36: 378 | B36: DT569 | C36: 0 | D36: =IFERROR(IF(INDEX(HAMARA!I:I,MATCH(B36,HAMARA!E:E,0))=0,"",INDEX(HAMARA!I:I,MATCH(B36,HAMARA!E:E,0))),"") -> השקעות אחרות
A37: 378 | B37: DT568 | C37: 0 | D37: =IFERROR(IF(INDEX(HAMARA!I:I,MATCH(B37,HAMARA!E:E,0))=0,"",INDEX(HAMARA!I:I,MATCH(B37,HAMARA!E:E,0))),"") -> השקעות אחרות
A38: 378 | B38: DT432 | C38: 0 | D38: =IFERROR(IF(INDEX(HAMARA!I:I,MATCH(B38,HAMARA!E:E,0))=0,"",INDEX(HAMARA!I:I,MATCH(B38,HAMARA!E:E,0))),"") -> השקעות אחרות
A39: 378 | B39: DT573 | C39: 0 | D39: =IFERROR(IF(INDEX(HAMARA!I:I,MATCH(B39,HAMARA!E:E,0))=0,"",INDEX(HAMARA!I:I,MATCH(B39,HAMARA!E:E,0))),"") -> השקעות אחרות
A40: 378 | B40: DT572 | C40: 0 | D40: =IFERROR(IF(INDEX(HAMARA!I:I,MATCH(B40,HAMARA!E:E,0))=0,"",INDEX(HAMARA!I:I,MATCH(B40,HAMARA!E:E,0))),"") -> השקעות אחרות
A41: 378 | B41: DT547 | C41: 0 | D41: =IFERROR(IF(INDEX(HAMARA!I:I,MATCH(B41,HAMARA!E:E,0))=0,"",INDEX(HAMARA!I:I,MATCH(B41,HAMARA!E:E,0))),"") -> השקעות אחרות
A42: 378 | B42: DT571 | C42: 0 | D42: =IFERROR(IF(INDEX(HAMARA!I:I,MATCH(B42,HAMARA!E:E,0))=0,"",INDEX(HAMARA!I:I,MATCH(B42,HAMARA!E:E,0))),"") -> השקעות אחרות
A43: 378 | B43: DT570 | C43: 0 | D43: =IFERROR(IF(INDEX(HAMARA!I:I,MATCH(B43,HAMARA!E:E,0))=0,"",INDEX(HAMARA!I:I,MATCH(B43,HAMARA!E:E,0))),"") -> השקעות אחרות
A44: 378 | B44: DT601 | C44: 0 | D44: =IFERROR(IF(INDEX(HAMARA!I:I,MATCH(B44,HAMARA!E:E,0))=0,"",INDEX(HAMARA!I:I,MATCH(B44,HAMARA!E:E,0))),"") -> אג"ח קונצרניות סחירות
A45: 378 | B45: DT602 | C45: 0 | D45: =IFERROR(IF(INDEX(HAMARA!I:I,MATCH(B45,HAMARA!E:E,0))=0,"",INDEX(HAMARA!I:I,MATCH(B45,HAMARA!E:E,0))),"") -> אג"ח קונצרניות סחירות
A46: 378 | B46: DT603 | C46: 0 | D46: =IFERROR(IF(INDEX(HAMARA!I:I,MATCH(B46,HAMARA!E:E,0))=0,"",INDEX(HAMARA!I:I,MATCH(B46,HAMARA!E:E,0))),"") -> אג"ח קונצרניות סחירות
A47: 378 | B47: DT604 | C47: 0 | D47: =IFERROR(IF(INDEX(HAMARA!I:I,MATCH(B47,HAMARA!E:E,0))=0,"",INDEX(HAMARA!I:I,MATCH(B47,HAMARA!E:E,0))),"") -> אג"ח קונצרניות סחירות
A48: 378 | B48: DT605 | C48: 0 | D48: =IFERROR(IF(INDEX(HAMARA!I:I,MATCH(B48,HAMARA!E:E,0))=0,"",INDEX(HAMARA!I:I,MATCH(B48,HAMARA!E:E,0))),"") -> אג"ח קונצרניות סחירות
A49: 378 | B49: DT606 | C49: 0 | D49: =IFERROR(IF(INDEX(HAMARA!I:I,MATCH(B49,HAMARA!E:E,0))=0,"",INDEX(HAMARA!I:I,MATCH(B49,HAMARA!E:E,0))),"") -> אג"ח קונצרניות סחירות
A50: 378 | B50: DT607 | C50: 0 | D50: =IFERROR(IF(INDEX(HAMARA!I:I,MATCH(B50,HAMARA!E:E,0))=0,"",INDEX(HAMARA!I:I,MATCH(B50,HAMARA!E:E,0))),"") -> השקעות אחרות
A51: 378 | B51: DT608 | C51: 0 | D51: =IFERROR(IF(INDEX(HAMARA!I:I,MATCH(B51,HAMARA!E:E,0))=0,"",INDEX(HAMARA!I:I,MATCH(B51,HAMARA!E:E,0))),"") -> השקעות אחרות
A52: 378 | B52: DT609 | C52: 0 | D52: =IFERROR(IF(INDEX(HAMARA!I:I,MATCH(B52,HAMARA!E:E,0))=0,"",INDEX(HAMARA!I:I,MATCH(B52,HAMARA!E:E,0))),"") -> השקעות אחרות
A53: 378 | B53: DT610 | C53: 0 | D53: =IFERROR(IF(INDEX(HAMARA!I:I,MATCH(B53,HAMARA!E:E,0))=0,"",INDEX(HAMARA!I:I,MATCH(B53,HAMARA!E:E,0))),"") -> השקעות אחרות
A54: 378 | B54: DT611 | C54: 0 | D54: =IFERROR(IF(INDEX(HAMARA!I:I,MATCH(B54,HAMARA!E:E,0))=0,"",INDEX(HAMARA!I:I,MATCH(B54,HAMARA!E:E,0))),"") -> השקעות אחרות
A55: 378 | B55: DT612 | C55: 0 | D55: =IFERROR(IF(INDEX(HAMARA!I:I,MATCH(B55,HAMARA!E:E,0))=0,"",INDEX(HAMARA!I:I,MATCH(B55,HAMARA!E:E,0))),"") -> השקעות אחרות
A56: 378 | B56: DT613 | C56: 0 | D56: =IFERROR(IF(INDEX(HAMARA!I:I,MATCH(B56,HAMARA!E:E,0))=0,"",INDEX(HAMARA!I:I,MATCH(B56,HAMARA!E:E,0))),"") -> השקעות אחרות
A57: 378 | B57: DT614 | C57: 0 | D57: =IFERROR(IF(INDEX(HAMARA!I:I,MATCH(B57,HAMARA!E:E,0))=0,"",INDEX(HAMARA!I:I,MATCH(B57,HAMARA!E:E,0))),"") -> השקעות אחרות
A58: 378 | B58: DT301 | C58: 63324.626 | D58: =IFERROR(IF(INDEX(HAMARA!I:I,MATCH(B58,HAMARA!E:E,0))=0,"",INDEX(HAMARA!I:I,MATCH(B58,HAMARA!E:E,0))),"") -> אג"ח קונצרניות סחירות
A59: 378 | B59: DT303 | C59: 13218.735 | D59: =IFERROR(IF(INDEX(HAMARA!I:I,MATCH(B59,HAMARA!E:E,0))=0,"",INDEX(HAMARA!I:I,MATCH(B59,HAMARA!E:E,0))),"") -> אג"ח קונצרניות סחירות
A60: 378 | B60: DT302 | C60: 86.887 | D60: =IFERROR(IF(INDEX(HAMARA!I:I,MATCH(B60,HAMARA!E:E,0))=0,"",INDEX(HAMARA!I:I,MATCH(B60,HAMARA!E:E,0))),"") -> אג"ח קונצרניות סחירות
A61: 378 | B61: DT307 | C61: 4588.309 | D61: =IFERROR(IF(INDEX(HAMARA!I:I,MATCH(B61,HAMARA!E:E,0))=0,"",INDEX(HAMARA!I:I,MATCH(B61,HAMARA!E:E,0))),"") -> אג"ח קונצרניות סחירות
A62: 378 | B62: DT309 | C62: 25319.257 | D62: =IFERROR(IF(INDEX(HAMARA!I:I,MATCH(B62,HAMARA!E:E,0))=0,"",INDEX(HAMARA!I:I,MATCH(B62,HAMARA!E:E,0))),"") -> אג"ח קונצרניות סחירות
A63: 378 | B63: DT308 | C63: 174.009 | D63: =IFERROR(IF(INDEX(HAMARA!I:I,MATCH(B63,HAMARA!E:E,0))=0,"",INDEX(HAMARA!I:I,MATCH(B63,HAMARA!E:E,0))),"") -> אג"ח קונצרניות סחירות
A64: 378 | B64: DT313 | C64: 252.921 | D64: =IFERROR(IF(INDEX(HAMARA!I:I,MATCH(B64,HAMARA!E:E,0))=0,"",INDEX(HAMARA!I:I,MATCH(B64,HAMARA!E:E,0))),"") -> אג"ח קונצרניות סחירות
A65: 378 | B65: DT315 | C65: 2929.087 | D65: =IFERROR(IF(INDEX(HAMARA!I:I,MATCH(B65,HAMARA!E:E,0))=0,"",INDEX(HAMARA!I:I,MATCH(B65,HAMARA!E:E,0))),"") -> אג"ח קונצרניות סחירות
A66: 378 | B66: DT314 | C66: 0 | D66: =IFERROR(IF(INDEX(HAMARA!I:I,MATCH(B66,HAMARA!E:E,0))=0,"",INDEX(HAMARA!I:I,MATCH(B66,HAMARA!E:E,0))),"") -> אג"ח קונצרניות סחירות
A67: 378 | B67: DT615 | C67: 0 | D67: =IFERROR(IF(INDEX(HAMARA!I:I,MATCH(B67,HAMARA!E:E,0))=0,"",INDEX(HAMARA!I:I,MATCH(B67,HAMARA!E:E,0))),"") -> אג"ח קונצרניות סחירות
A68: 378 | B68: DT616 | C68: 0 | D68: =IFERROR(IF(INDEX(HAMARA!I:I,MATCH(B68,HAMARA!E:E,0))=0,"",INDEX(HAMARA!I:I,MATCH(B68,HAMARA!E:E,0))),"") -> אג"ח קונצרניות סחירות
A69: 378 | B69: DT617 | C69: 0 | D69: =IFERROR(IF(INDEX(HAMARA!I:I,MATCH(B69,HAMARA!E:E,0))=0,"",INDEX(HAMARA!I:I,MATCH(B69,HAMARA!E:E,0))),"") -> אג"ח קונצרניות סחירות
A70: 378 | B70: DT319 | C70: 1523.367 | D70: =IFERROR(IF(INDEX(HAMARA!I:I,MATCH(B70,HAMARA!E:E,0))=0,"",INDEX(HAMARA!I:I,MATCH(B70,HAMARA!E:E,0))),"") -> השקעות אחרות
A71: 378 | B71: DT321 | C71: 437.859 | D71: =IFERROR(IF(INDEX(HAMARA!I:I,MATCH(B71,HAMARA!E:E,0))=0,"",INDEX(HAMARA!I:I,MATCH(B71,HAMARA!E:E,0))),"") -> השקעות אחרות
A72: 378 | B72: DT320 | C72: 0 | D72: =IFERROR(IF(INDEX(HAMARA!I:I,MATCH(B72,HAMARA!E:E,0))=0,"",INDEX(HAMARA!I:I,MATCH(B72,HAMARA!E:E,0))),"") -> השקעות אחרות
A73: 378 | B73: DT325 | C73: 0 | D73: =IFERROR(IF(INDEX(HAMARA!I:I,MATCH(B73,HAMARA!E:E,0))=0,"",INDEX(HAMARA!I:I,MATCH(B73,HAMARA!E:E,0))),"") -> השקעות אחרות
A74: 378 | B74: DT327 | C74: 0 | D74: =IFERROR(IF(INDEX(HAMARA!I:I,MATCH(B74,HAMARA!E:E,0))=0,"",INDEX(HAMARA!I:I,MATCH(B74,HAMARA!E:E,0))),"") -> השקעות אחרות
A75: 378 | B75: DT326 | C75: 0 | D75: =IFERROR(IF(INDEX(HAMARA!I:I,MATCH(B75,HAMARA!E:E,0))=0,"",INDEX(HAMARA!I:I,MATCH(B75,HAMARA!E:E,0))),"") -> השקעות אחרות
A76: 378 | B76: DT553 | C76: 0 | D76: =IFERROR(IF(INDEX(HAMARA!I:I,MATCH(B76,HAMARA!E:E,0))=0,"",INDEX(HAMARA!I:I,MATCH(B76,HAMARA!E:E,0))),"") -> השקעות אחרות
A77: 378 | B77: DT555 | C77: 0 | D77: =IFERROR(IF(INDEX(HAMARA!I:I,MATCH(B77,HAMARA!E:E,0))=0,"",INDEX(HAMARA!I:I,MATCH(B77,HAMARA!E:E,0))),"") -> השקעות אחרות
A78: 378 | B78: DT554 | C78: 0 | D78: =IFERROR(IF(INDEX(HAMARA!I:I,MATCH(B78,HAMARA!E:E,0))=0,"",INDEX(HAMARA!I:I,MATCH(B78,HAMARA!E:E,0))),"") -> השקעות אחרות
A79: 378 | B79: DT337 | C79: 0 | D79: =IFERROR(IF(INDEX(HAMARA!I:I,MATCH(B79,HAMARA!E:E,0))=0,"",INDEX(HAMARA!I:I,MATCH(B79,HAMARA!E:E,0))),"") -> השקעות אחרות
A80: 378 | B80: DT339 | C80: 0 | D80: =IFERROR(IF(INDEX(HAMARA!I:I,MATCH(B80,HAMARA!E:E,0))=0,"",INDEX(HAMARA!I:I,MATCH(B80,HAMARA!E:E,0))),"") -> השקעות אחרות
A81: 378 | B81: DT338 | C81: 0 | D81: =IFERROR(IF(INDEX(HAMARA!I:I,MATCH(B81,HAMARA!E:E,0))=0,"",INDEX(HAMARA!I:I,MATCH(B81,HAMARA!E:E,0))),"") -> השקעות אחרות
A82: 378 | B82: DT618 | C82: 0 | D82: =IFERROR(IF(INDEX(HAMARA!I:I,MATCH(B82,HAMARA!E:E,0))=0,"",INDEX(HAMARA!I:I,MATCH(B82,HAMARA!E:E,0))),"") -> השקעות אחרות
A83: 378 | B83: DT619 | C83: 0 | D83: =IFERROR(IF(INDEX(HAMARA!I:I,MATCH(B83,HAMARA!E:E,0))=0,"",INDEX(HAMARA!I:I,MATCH(B83,HAMARA!E:E,0))),"") -> השקעות אחרות
A84: 378 | B84: DT620 | C84: 0 | D84: =IFERROR(IF(INDEX(HAMARA!I:I,MATCH(B84,HAMARA!E:E,0))=0,"",INDEX(HAMARA!I:I,MATCH(B84,HAMARA!E:E,0))),"") -> השקעות אחרות
A85: 378 | B85: DT621 | C85: 0 | D85: =IFERROR(IF(INDEX(HAMARA!I:I,MATCH(B85,HAMARA!E:E,0))=0,"",INDEX(HAMARA!I:I,MATCH(B85,HAMARA!E:E,0))),"") -> השקעות אחרות
A86: 378 | B86: DT454 | C86: 0 | D86: =IFERROR(IF(INDEX(HAMARA!I:I,MATCH(B86,HAMARA!E:E,0))=0,"",INDEX(HAMARA!I:I,MATCH(B86,HAMARA!E:E,0))),"") -> השקעות אחרות
A87: 378 | B87: DT455 | C87: 0 | D87: =IFERROR(IF(INDEX(HAMARA!I:I,MATCH(B87,HAMARA!E:E,0))=0,"",INDEX(HAMARA!I:I,MATCH(B87,HAMARA!E:E,0))),"") -> השקעות אחרות
A88: 378 | B88: DT456 | C88: 0 | D88: =IFERROR(IF(INDEX(HAMARA!I:I,MATCH(B88,HAMARA!E:E,0))=0,"",INDEX(HAMARA!I:I,MATCH(B88,HAMARA!E:E,0))),"") -> אג"ח קונצרניות סחירות
A89: 378 | B89: DT457 | C89: 0 | D89: =IFERROR(IF(INDEX(HAMARA!I:I,MATCH(B89,HAMARA!E:E,0))=0,"",INDEX(HAMARA!I:I,MATCH(B89,HAMARA!E:E,0))),"") -> אג"ח קונצרניות סחירות
A90: 378 | B90: DT458 | C90: 0 | D90: =IFERROR(IF(INDEX(HAMARA!I:I,MATCH(B90,HAMARA!E:E,0))=0,"",INDEX(HAMARA!I:I,MATCH(B90,HAMARA!E:E,0))),"") -> אג"ח קונצרניות סחירות
A91: 378 | B91: DT459 | C91: 0 | D91: =IFERROR(IF(INDEX(HAMARA!I:I,MATCH(B91,HAMARA!E:E,0))=0,"",INDEX(HAMARA!I:I,MATCH(B91,HAMARA!E:E,0))),"") -> אג"ח קונצרניות סחירות
A92: 378 | B92: DT460 | C92: 0 | D92: =IFERROR(IF(INDEX(HAMARA!I:I,MATCH(B92,HAMARA!E:E,0))=0,"",INDEX(HAMARA!I:I,MATCH(B92,HAMARA!E:E,0))),"") -> השקעות אחרות
A93: 378 | B93: DT461 | C93: 0 | D93: =IFERROR(IF(INDEX(HAMARA!I:I,MATCH(B93,HAMARA!E:E,0))=0,"",INDEX(HAMARA!I:I,MATCH(B93,HAMARA!E:E,0))),"") -> השקעות אחרות
A94: 378 | B94: DT462 | C94: 0 | D94: =IFERROR(IF(INDEX(HAMARA!I:I,MATCH(B94,HAMARA!E:E,0))=0,"",INDEX(HAMARA!I:I,MATCH(B94,HAMARA!E:E,0))),"") -> השקעות אחרות
A95: 378 | B95: DT558 | C95: 0 | D95: =IFERROR(IF(INDEX(HAMARA!I:I,MATCH(B95,HAMARA!E:E,0))=0,"",INDEX(HAMARA!I:I,MATCH(B95,HAMARA!E:E,0))),"") -> השקעות אחרות
A96: 378 | B96: DT463 | C96: 0 | D96: =IFERROR(IF(INDEX(HAMARA!I:I,MATCH(B96,HAMARA!E:E,0))=0,"",INDEX(HAMARA!I:I,MATCH(B96,HAMARA!E:E,0))),"") -> השקעות אחרות
A97: 378 | B97: DT464 | C97: 0 | D97: =IFERROR(IF(INDEX(HAMARA!I:I,MATCH(B97,HAMARA!E:E,0))=0,"",INDEX(HAMARA!I:I,MATCH(B97,HAMARA!E:E,0))),"") -> השקעות אחרות
A98: 378 | B98: DT465 | C98: 0 | D98: =IFERROR(IF(INDEX(HAMARA!I:I,MATCH(B98,HAMARA!E:E,0))=0,"",INDEX(HAMARA!I:I,MATCH(B98,HAMARA!E:E,0))),"") -> השקעות אחרות
A99: 378 | B99: DT559 | C99: 0 | D99: =IFERROR(IF(INDEX(HAMARA!I:I,MATCH(B99,HAMARA!E:E,0))=0,"",INDEX(HAMARA!I:I,MATCH(B99,HAMARA!E:E,0))),"") -> השקעות אחרות
A100: 378 | B100: DT402 | C100: 92359.931 | D100: =IFERROR(IF(INDEX(HAMARA!I:I,MATCH(B100,HAMARA!E:E,0))=0,"",INDEX(HAMARA!I:I,MATCH(B100,HAMARA!E:E,0))),"") -> מניות וני"ע סחירים אחרים
A101: 378 | B101: DT403 | C101: 21619.052 | D101: =IFERROR(IF(INDEX(HAMARA!I:I,MATCH(B101,HAMARA!E:E,0))=0,"",INDEX(HAMARA!I:I,MATCH(B101,HAMARA!E:E,0))),"") -> מניות וני"ע סחירים אחרים
A102: 378 | B102: DT404 | C102: 2147.977 | D102: =IFERROR(IF(INDEX(HAMARA!I:I,MATCH(B102,HAMARA!E:E,0))=0,"",INDEX(HAMARA!I:I,MATCH(B102,HAMARA!E:E,0))),"") -> מניות וני"ע סחירים אחרים
A103: 378 | B103: DT405 | C103: 0 | D103: =IFERROR(IF(INDEX(HAMARA!I:I,MATCH(B103,HAMARA!E:E,0))=0,"",INDEX(HAMARA!I:I,MATCH(B103,HAMARA!E:E,0))),"") -> השקעות אחרות
A104: 378 | B104: DT172 | C104: 0 | D104: =IFERROR(IF(INDEX(HAMARA!I:I,MATCH(B104,HAMARA!E:E,0))=0,"",INDEX(HAMARA!I:I,MATCH(B104,HAMARA!E:E,0))),"") -> השקעות אחרות
A105: 378 | B105: DT205 | C105: 0 | D105: =IFERROR(IF(INDEX(HAMARA!I:I,MATCH(B105,HAMARA!E:E,0))=0,"",INDEX(HAMARA!I:I,MATCH(B105,HAMARA!E:E,0))),"") -> השקעות אחרות
A106: 378 | B106: DC9 | C106: 0 | D106: =IFERROR(IF(INDEX(HAMARA!I:I,MATCH(B106,HAMARA!E:E,0))=0,"",INDEX(HAMARA!I:I,MATCH(B106,HAMARA!E:E,0))),"") -> השקעות אחרות
A107: 378 | B107: DT28 | C107: 6782.202 | D107: =IFERROR(IF(INDEX(HAMARA!I:I,MATCH(B107,HAMARA!E:E,0))=0,"",INDEX(HAMARA!I:I,MATCH(B107,HAMARA!E:E,0))),"") -> מניות וני"ע סחירים אחרים
A108: 378 | B108: DT30 | C108: 23622.765 | D108: =IFERROR(IF(INDEX(HAMARA!I:I,MATCH(B108,HAMARA!E:E,0))=0,"",INDEX(HAMARA!I:I,MATCH(B108,HAMARA!E:E,0))),"") -> מניות וני"ע סחירים אחרים
A109: 378 | B109: DT81 | C109: 0 | D109: =IFERROR(IF(INDEX(HAMARA!I:I,MATCH(B109,HAMARA!E:E,0))=0,"",INDEX(HAMARA!I:I,MATCH(B109,HAMARA!E:E,0))),"") -> מניות וני"ע סחירים אחרים
A110: 378 | B110: DT622 | C110: 0 | D110: =IFERROR(IF(INDEX(HAMARA!I:I,MATCH(B110,HAMARA!E:E,0))=0,"",INDEX(HAMARA!I:I,MATCH(B110,HAMARA!E:E,0))),"") -> השקעות אחרות
A111: 378 | B111: DT83 | C111: 0 | D111: =IFERROR(IF(INDEX(HAMARA!I:I,MATCH(B111,HAMARA!E:E,0))=0,"",INDEX(HAMARA!I:I,MATCH(B111,HAMARA!E:E,0))),"") -> השקעות אחרות
A112: 378 | B112: DT360 | C112: 338.494 | D112: =IFERROR(IF(INDEX(HAMARA!I:I,MATCH(B112,HAMARA!E:E,0))=0,"",INDEX(HAMARA!I:I,MATCH(B112,HAMARA!E:E,0))),"") -> מניות וני"ע סחירים אחרים
A113: 378 | B113: DT361 | C113: 0 | D113: =IFERROR(IF(INDEX(HAMARA!I:I,MATCH(B113,HAMARA!E:E,0))=0,"",INDEX(HAMARA!I:I,MATCH(B113,HAMARA!E:E,0))),"") -> מניות וני"ע סחירים אחרים
A114: 378 | B114: DT362 | C114: 14492.047 | D114: =IFERROR(IF(INDEX(HAMARA!I:I,MATCH(B114,HAMARA!E:E,0))=0,"",INDEX(HAMARA!I:I,MATCH(B114,HAMARA!E:E,0))),"") -> מניות וני"ע סחירים אחרים
A115: 378 | B115: DT363 | C115: 0 | D115: =IFERROR(IF(INDEX(HAMARA!I:I,MATCH(B115,HAMARA!E:E,0))=0,"",INDEX(HAMARA!I:I,MATCH(B115,HAMARA!E:E,0))),"") -> מניות וני"ע סחירים אחרים
A116: 378 | B116: DT406 | C116: 0 | D116: =IFERROR(IF(INDEX(HAMARA!I:I,MATCH(B116,HAMARA!E:E,0))=0,"",INDEX(HAMARA!I:I,MATCH(B116,HAMARA!E:E,0))),"") -> מניות וני"ע סחירים אחרים
A117: 378 | B117: DT623 | C117: 0 | D117: =IFERROR(IF(INDEX(HAMARA!I:I,MATCH(B117,HAMARA!E:E,0))=0,"",INDEX(HAMARA!I:I,MATCH(B117,HAMARA!E:E,0))),"") -> מניות וני"ע סחירים אחרים
A118: 378 | B118: DT366 | C118: 176370.686 | D118: =IFERROR(IF(INDEX(HAMARA!I:I,MATCH(B118,HAMARA!E:E,0))=0,"",INDEX(HAMARA!I:I,MATCH(B118,HAMARA!E:E,0))),"") -> מניות וני"ע סחירים אחרים
A119: 378 | B119: DT367 | C119: 17335.803 | D119: =IFERROR(IF(INDEX(HAMARA!I:I,MATCH(B119,HAMARA!E:E,0))=0,"",INDEX(HAMARA!I:I,MATCH(B119,HAMARA!E:E,0))),"") -> מניות וני"ע סחירים אחרים
A120: 378 | B120: DT407 | C120: 0 | D120: =IFERROR(IF(INDEX(HAMARA!I:I,MATCH(B120,HAMARA!E:E,0))=0,"",INDEX(HAMARA!I:I,MATCH(B120,HAMARA!E:E,0))),"") -> מניות וני"ע סחירים אחרים
A121: 378 | B121: DT624 | C121: 0 | D121: =IFERROR(IF(INDEX(HAMARA!I:I,MATCH(B121,HAMARA!E:E,0))=0,"",INDEX(HAMARA!I:I,MATCH(B121,HAMARA!E:E,0))),"") -> מניות וני"ע סחירים אחרים
A122: 378 | B122: DB10 | C122: 0 | D122: =IFERROR(IF(INDEX(HAMARA!I:I,MATCH(B122,HAMARA!E:E,0))=0,"",INDEX(HAMARA!I:I,MATCH(B122,HAMARA!E:E,0))),"") -> מניות וני"ע סחירים אחרים
A123: 378 | B123: DT701 | C123: 0 | D123: =IFERROR(IF(INDEX(HAMARA!I:I,MATCH(B123,HAMARA!E:E,0))=0,"",INDEX(HAMARA!I:I,MATCH(B123,HAMARA!E:E,0))),"") -> מניות וני"ע סחירים אחרים
A124: 378 | B124: DT702 | C124: 0 | D124: =IFERROR(IF(INDEX(HAMARA!I:I,MATCH(B124,HAMARA!E:E,0))=0,"",INDEX(HAMARA!I:I,MATCH(B124,HAMARA!E:E,0))),"") -> מניות וני"ע סחירים אחרים
A125: 378 | B125: DT703 | C125: 701.408 | D125: =IFERROR(IF(INDEX(HAMARA!I:I,MATCH(B125,HAMARA!E:E,0))=0,"",INDEX(HAMARA!I:I,MATCH(B125,HAMARA!E:E,0))),"") -> מניות וני"ע סחירים אחרים
A126: 378 | B126: DT704 | C126: 0 | D126: =IFERROR(IF(INDEX(HAMARA!I:I,MATCH(B126,HAMARA!E:E,0))=0,"",INDEX(HAMARA!I:I,MATCH(B126,HAMARA!E:E,0))),"") -> מניות וני"ע סחירים אחרים
A127: 378 | B127: DT53 | C127: 0 | D127: =IFERROR(IF(INDEX(HAMARA!I:I,MATCH(B127,HAMARA!E:E,0))=0,"",INDEX(HAMARA!I:I,MATCH(B127,HAMARA!E:E,0))),"") -> השקעות אחרות
A128: 378 | B128: DT466 | C128: 20721.024 | D128: =IFERROR(IF(INDEX(HAMARA!I:I,MATCH(B128,HAMARA!E:E,0))=0,"",INDEX(HAMARA!I:I,MATCH(B128,HAMARA!E:E,0))),"") -> השקעות אחרות
A129: 378 | B129: DT225 | C129: 1722.747 | D129: =IFERROR(IF(INDEX(HAMARA!I:I,MATCH(B129,HAMARA!E:E,0))=0,"",INDEX(HAMARA!I:I,MATCH(B129,HAMARA!E:E,0))),"") -> השקעות אחרות
A130: 378 | B130: DT52 | C130: 4996.943 | D130: =IFERROR(IF(INDEX(HAMARA!I:I,MATCH(B130,HAMARA!E:E,0))=0,"",INDEX(HAMARA!I:I,MATCH(B130,HAMARA!E:E,0))),"") -> השקעות אחרות
A131: 378 | B131: DT89 | C131: 0 | D131: =IFERROR(IF(INDEX(HAMARA!I:I,MATCH(B131,HAMARA!E:E,0))=0,"",INDEX(HAMARA!I:I,MATCH(B131,HAMARA!E:E,0))),"") -> השקעות אחרות
A132: 378 | B132: DT467 | C132: 977.1 | D132: =IFERROR(IF(INDEX(HAMARA!I:I,MATCH(B132,HAMARA!E:E,0))=0,"",INDEX(HAMARA!I:I,MATCH(B132,HAMARA!E:E,0))),"") -> השקעות אחרות
A133: 378 | B133: DT226 | C133: 7357.171 | D133: =IFERROR(IF(INDEX(HAMARA!I:I,MATCH(B133,HAMARA!E:E,0))=0,"",INDEX(HAMARA!I:I,MATCH(B133,HAMARA!E:E,0))),"") -> השקעות אחרות
A134: 378 | B134: DT88 | C134: 53596.322 | D134: =IFERROR(IF(INDEX(HAMARA!I:I,MATCH(B134,HAMARA!E:E,0))=0,"",INDEX(HAMARA!I:I,MATCH(B134,HAMARA!E:E,0))),"") -> השקעות אחרות
A135: 378 | B135: DB5 | C135: 259.651 | D135: =IFERROR(IF(INDEX(HAMARA!I:I,MATCH(B135,HAMARA!E:E,0))=0,"",INDEX(HAMARA!I:I,MATCH(B135,HAMARA!E:E,0))),"") -> מניות וני"ע סחירים אחרים
A136: 378 | B136: DT439 | C136: 0 | D136: =IFERROR(IF(INDEX(HAMARA!I:I,MATCH(B136,HAMARA!E:E,0))=0,"",INDEX(HAMARA!I:I,MATCH(B136,HAMARA!E:E,0))),"") -> השקעות אחרות
A137: 378 | B137: DT211 | C137: 0 | D137: =IFERROR(IF(INDEX(HAMARA!I:I,MATCH(B137,HAMARA!E:E,0))=0,"",INDEX(HAMARA!I:I,MATCH(B137,HAMARA!E:E,0))),"") -> השקעות אחרות
A138: 378 | B138: DT440 | C138: 0.303 | D138: =IFERROR(IF(INDEX(HAMARA!I:I,MATCH(B138,HAMARA!E:E,0))=0,"",INDEX(HAMARA!I:I,MATCH(B138,HAMARA!E:E,0))),"") -> השקעות אחרות
A139: 378 | B139: DT749 | C139: 0 | D139: =IFERROR(IF(INDEX(HAMARA!I:I,MATCH(B139,HAMARA!E:E,0))=0,"",INDEX(HAMARA!I:I,MATCH(B139,HAMARA!E:E,0))),"") -> השקעות אחרות
A140: 378 | B140: DT441 | C140: 0 | D140: =IFERROR(IF(INDEX(HAMARA!I:I,MATCH(B140,HAMARA!E:E,0))=0,"",INDEX(HAMARA!I:I,MATCH(B140,HAMARA!E:E,0))),"") -> השקעות אחרות
A141: 378 | B141: DT442 | C141: 2329.234 | D141: =IFERROR(IF(INDEX(HAMARA!I:I,MATCH(B141,HAMARA!E:E,0))=0,"",INDEX(HAMARA!I:I,MATCH(B141,HAMARA!E:E,0))),"") -> השקעות אחרות
A142: 378 | B142: DT443 | C142: 0 | D142: =IFERROR(IF(INDEX(HAMARA!I:I,MATCH(B142,HAMARA!E:E,0))=0,"",INDEX(HAMARA!I:I,MATCH(B142,HAMARA!E:E,0))),"") -> השקעות אחרות
A143: 378 | B143: DT444 | C143: 0 | D143: =IFERROR(IF(INDEX(HAMARA!I:I,MATCH(B143,HAMARA!E:E,0))=0,"",INDEX(HAMARA!I:I,MATCH(B143,HAMARA!E:E,0))),"") -> השקעות אחרות
A144: 378 | B144: DT445 | C144: 0 | D144: =IFERROR(IF(INDEX(HAMARA!I:I,MATCH(B144,HAMARA!E:E,0))=0,"",INDEX(HAMARA!I:I,MATCH(B144,HAMARA!E:E,0))),"") -> השקעות אחרות
A145: 378 | B145: DT212 | C145: 0 | D145: =IFERROR(IF(INDEX(HAMARA!I:I,MATCH(B145,HAMARA!E:E,0))=0,"",INDEX(HAMARA!I:I,MATCH(B145,HAMARA!E:E,0))),"") -> השקעות אחרות
A146: 378 | B146: DT446 | C146: 0 | D146: =IFERROR(IF(INDEX(HAMARA!I:I,MATCH(B146,HAMARA!E:E,0))=0,"",INDEX(HAMARA!I:I,MATCH(B146,HAMARA!E:E,0))),"") -> השקעות אחרות
A147: 378 | B147: DT447 | C147: 0 | D147: =IFERROR(IF(INDEX(HAMARA!I:I,MATCH(B147,HAMARA!E:E,0))=0,"",INDEX(HAMARA!I:I,MATCH(B147,HAMARA!E:E,0))),"") -> השקעות אחרות
A148: 378 | B148: DT448 | C148: 0 | D148: =IFERROR(IF(INDEX(HAMARA!I:I,MATCH(B148,HAMARA!E:E,0))=0,"",INDEX(HAMARA!I:I,MATCH(B148,HAMARA!E:E,0))),"") -> השקעות אחרות
A149: 378 | B149: DT449 | C149: 0 | D149: =IFERROR(IF(INDEX(HAMARA!I:I,MATCH(B149,HAMARA!E:E,0))=0,"",INDEX(HAMARA!I:I,MATCH(B149,HAMARA!E:E,0))),"") -> השקעות אחרות
A150: 378 | B150: DT468 | C150: 0 | D150: =IFERROR(IF(INDEX(HAMARA!I:I,MATCH(B150,HAMARA!E:E,0))=0,"",INDEX(HAMARA!I:I,MATCH(B150,HAMARA!E:E,0))),"") -> מניות וני"ע סחירים אחרים
A151: 378 | B151: DT469 | C151: 0 | D151: =IFERROR(IF(INDEX(HAMARA!I:I,MATCH(B151,HAMARA!E:E,0))=0,"",INDEX(HAMARA!I:I,MATCH(B151,HAMARA!E:E,0))),"") -> מניות וני"ע סחירים אחרים
A152: 378 | B152: DT175 | C152: 0 | D152: =IFERROR(IF(INDEX(HAMARA!I:I,MATCH(B152,HAMARA!E:E,0))=0,"",INDEX(HAMARA!I:I,MATCH(B152,HAMARA!E:E,0))),"") -> השקעות אחרות
A153: 378 | B153: DT208 | C153: 0 | D153: =IFERROR(IF(INDEX(HAMARA!I:I,MATCH(B153,HAMARA!E:E,0))=0,"",INDEX(HAMARA!I:I,MATCH(B153,HAMARA!E:E,0))),"") -> השקעות אחרות
A154: 378 | B154: DT176 | C154: 0 | D154: =IFERROR(IF(INDEX(HAMARA!I:I,MATCH(B154,HAMARA!E:E,0))=0,"",INDEX(HAMARA!I:I,MATCH(B154,HAMARA!E:E,0))),"") -> השקעות אחרות
A155: 378 | B155: DT209 | C155: 0 | D155: =IFERROR(IF(INDEX(HAMARA!I:I,MATCH(B155,HAMARA!E:E,0))=0,"",INDEX(HAMARA!I:I,MATCH(B155,HAMARA!E:E,0))),"") -> השקעות אחרות
A156: 378 | B156: DT177 | C156: 0 | D156: =IFERROR(IF(INDEX(HAMARA!I:I,MATCH(B156,HAMARA!E:E,0))=0,"",INDEX(HAMARA!I:I,MATCH(B156,HAMARA!E:E,0))),"") -> השקעות אחרות
A157: 378 | B157: DT210 | C157: 0 | D157: =IFERROR(IF(INDEX(HAMARA!I:I,MATCH(B157,HAMARA!E:E,0))=0,"",INDEX(HAMARA!I:I,MATCH(B157,HAMARA!E:E,0))),"") -> השקעות אחרות
A158: 378 | B158: DT472 | C158: 0 | D158: =IFERROR(IF(INDEX(HAMARA!I:I,MATCH(B158,HAMARA!E:E,0))=0,"",INDEX(HAMARA!I:I,MATCH(B158,HAMARA!E:E,0))),"") -> השקעות אחרות
A159: 378 | B159: DT470 | C159: 0 | D159: =IFERROR(IF(INDEX(HAMARA!I:I,MATCH(B159,HAMARA!E:E,0))=0,"",INDEX(HAMARA!I:I,MATCH(B159,HAMARA!E:E,0))),"") -> השקעות אחרות
A160: 378 | B160: DT345 | C160: 0 | D160: =IFERROR(IF(INDEX(HAMARA!I:I,MATCH(B160,HAMARA!E:E,0))=0,"",INDEX(HAMARA!I:I,MATCH(B160,HAMARA!E:E,0))),"") -> השקעות אחרות
A161: 378 | B161: DT347 | C161: 0 | D161: =IFERROR(IF(INDEX(HAMARA!I:I,MATCH(B161,HAMARA!E:E,0))=0,"",INDEX(HAMARA!I:I,MATCH(B161,HAMARA!E:E,0))),"") -> השקעות אחרות
A162: 378 | B162: DT625 | C162: 0 | D162: =IFERROR(IF(INDEX(HAMARA!I:I,MATCH(B162,HAMARA!E:E,0))=0,"",INDEX(HAMARA!I:I,MATCH(B162,HAMARA!E:E,0))),"") -> השקעות אחרות
A163: 378 | B163: DT626 | C163: 0 | D163: =IFERROR(IF(INDEX(HAMARA!I:I,MATCH(B163,HAMARA!E:E,0))=0,"",INDEX(HAMARA!I:I,MATCH(B163,HAMARA!E:E,0))),"") -> השקעות אחרות
A164: 378 | B164: DT471 | C164: 0 | D164: =IFERROR(IF(INDEX(HAMARA!I:I,MATCH(B164,HAMARA!E:E,0))=0,"",INDEX(HAMARA!I:I,MATCH(B164,HAMARA!E:E,0))),"") -> השקעות אחרות
A165: 378 | B165: DT473 | C165: 0 | D165: =IFERROR(IF(INDEX(HAMARA!I:I,MATCH(B165,HAMARA!E:E,0))=0,"",INDEX(HAMARA!I:I,MATCH(B165,HAMARA!E:E,0))),"") -> השקעות אחרות
A166: 378 | B166: DT346 | C166: 0 | D166: =IFERROR(IF(INDEX(HAMARA!I:I,MATCH(B166,HAMARA!E:E,0))=0,"",INDEX(HAMARA!I:I,MATCH(B166,HAMARA!E:E,0))),"") -> השקעות אחרות
A167: 378 | B167: DT348 | C167: 0 | D167: =IFERROR(IF(INDEX(HAMARA!I:I,MATCH(B167,HAMARA!E:E,0))=0,"",INDEX(HAMARA!I:I,MATCH(B167,HAMARA!E:E,0))),"") -> השקעות אחרות
A168: 378 | B168: DT213 | C168: 0 | D168: =IFERROR(IF(INDEX(HAMARA!I:I,MATCH(B168,HAMARA!E:E,0))=0,"",INDEX(HAMARA!I:I,MATCH(B168,HAMARA!E:E,0))),"") -> מניות וני"ע סחירים אחרים
A169: 378 | B169: DT217 | C169: 0 | D169: =IFERROR(IF(INDEX(HAMARA!I:I,MATCH(B169,HAMARA!E:E,0))=0,"",INDEX(HAMARA!I:I,MATCH(B169,HAMARA!E:E,0))),"") -> מניות וני"ע סחירים אחרים
A170: 378 | B170: DT214 | C170: 0 | D170: =IFERROR(IF(INDEX(HAMARA!I:I,MATCH(B170,HAMARA!E:E,0))=0,"",INDEX(HAMARA!I:I,MATCH(B170,HAMARA!E:E,0))),"") -> השקעות אחרות
A171: 378 | B171: DT218 | C171: 0 | D171: =IFERROR(IF(INDEX(HAMARA!I:I,MATCH(B171,HAMARA!E:E,0))=0,"",INDEX(HAMARA!I:I,MATCH(B171,HAMARA!E:E,0))),"") -> השקעות אחרות
A172: 378 | B172: DT215 | C172: 0 | D172: =IFERROR(IF(INDEX(HAMARA!I:I,MATCH(B172,HAMARA!E:E,0))=0,"",INDEX(HAMARA!I:I,MATCH(B172,HAMARA!E:E,0))),"") -> השקעות אחרות
A173: 378 | B173: DT219 | C173: 0 | D173: =IFERROR(IF(INDEX(HAMARA!I:I,MATCH(B173,HAMARA!E:E,0))=0,"",INDEX(HAMARA!I:I,MATCH(B173,HAMARA!E:E,0))),"") -> השקעות אחרות
A174: 378 | B174: DT216 | C174: 0 | D174: =IFERROR(IF(INDEX(HAMARA!I:I,MATCH(B174,HAMARA!E:E,0))=0,"",INDEX(HAMARA!I:I,MATCH(B174,HAMARA!E:E,0))),"") -> השקעות אחרות
A175: 378 | B175: DT220 | C175: 0 | D175: =IFERROR(IF(INDEX(HAMARA!I:I,MATCH(B175,HAMARA!E:E,0))=0,"",INDEX(HAMARA!I:I,MATCH(B175,HAMARA!E:E,0))),"") -> השקעות אחרות
A176: 378 | B176: DT474 | C176: 0 | D176: =IFERROR(IF(INDEX(HAMARA!I:I,MATCH(B176,HAMARA!E:E,0))=0,"",INDEX(HAMARA!I:I,MATCH(B176,HAMARA!E:E,0))),"") -> השקעות אחרות
A177: 378 | B177: DT475 | C177: 0 | D177: =IFERROR(IF(INDEX(HAMARA!I:I,MATCH(B177,HAMARA!E:E,0))=0,"",INDEX(HAMARA!I:I,MATCH(B177,HAMARA!E:E,0))),"") -> השקעות אחרות
A178: 378 | B178: DT476 | C178: 0 | D178: =IFERROR(IF(INDEX(HAMARA!I:I,MATCH(B178,HAMARA!E:E,0))=0,"",INDEX(HAMARA!I:I,MATCH(B178,HAMARA!E:E,0))),"") -> השקעות אחרות
A179: 378 | B179: DT481 | C179: 0 | D179: =IFERROR(IF(INDEX(HAMARA!I:I,MATCH(B179,HAMARA!E:E,0))=0,"",INDEX(HAMARA!I:I,MATCH(B179,HAMARA!E:E,0))),"") -> השקעות אחרות
A180: 378 | B180: DT477 | C180: 0 | D180: =IFERROR(IF(INDEX(HAMARA!I:I,MATCH(B180,HAMARA!E:E,0))=0,"",INDEX(HAMARA!I:I,MATCH(B180,HAMARA!E:E,0))),"") -> השקעות אחרות
A181: 378 | B181: DT482 | C181: 0 | D181: =IFERROR(IF(INDEX(HAMARA!I:I,MATCH(B181,HAMARA!E:E,0))=0,"",INDEX(HAMARA!I:I,MATCH(B181,HAMARA!E:E,0))),"") -> השקעות אחרות
A182: 378 | B182: DT478 | C182: 0 | D182: =IFERROR(IF(INDEX(HAMARA!I:I,MATCH(B182,HAMARA!E:E,0))=0,"",INDEX(HAMARA!I:I,MATCH(B182,HAMARA!E:E,0))),"") -> השקעות אחרות
A183: 378 | B183: DT483 | C183: 0 | D183: =IFERROR(IF(INDEX(HAMARA!I:I,MATCH(B183,HAMARA!E:E,0))=0,"",INDEX(HAMARA!I:I,MATCH(B183,HAMARA!E:E,0))),"") -> השקעות אחרות
A184: 378 | B184: DT479 | C184: 0 | D184: =IFERROR(IF(INDEX(HAMARA!I:I,MATCH(B184,HAMARA!E:E,0))=0,"",INDEX(HAMARA!I:I,MATCH(B184,HAMARA!E:E,0))),"") -> השקעות אחרות
A185: 378 | B185: DT484 | C185: 0 | D185: =IFERROR(IF(INDEX(HAMARA!I:I,MATCH(B185,HAMARA!E:E,0))=0,"",INDEX(HAMARA!I:I,MATCH(B185,HAMARA!E:E,0))),"") -> השקעות אחרות
A186: 378 | B186: DT480 | C186: 0 | D186: =IFERROR(IF(INDEX(HAMARA!I:I,MATCH(B186,HAMARA!E:E,0))=0,"",INDEX(HAMARA!I:I,MATCH(B186,HAMARA!E:E,0))),"") -> השקעות אחרות
A187: 378 | B187: DT485 | C187: 0 | D187: =IFERROR(IF(INDEX(HAMARA!I:I,MATCH(B187,HAMARA!E:E,0))=0,"",INDEX(HAMARA!I:I,MATCH(B187,HAMARA!E:E,0))),"") -> השקעות אחרות
A188: 378 | B188: DT705 | C188: 0 | D188: =IFERROR(IF(INDEX(HAMARA!I:I,MATCH(B188,HAMARA!E:E,0))=0,"",INDEX(HAMARA!I:I,MATCH(B188,HAMARA!E:E,0))),"") -> השקעות אחרות
A189: 378 | B189: DT706 | C189: 0 | D189: =IFERROR(IF(INDEX(HAMARA!I:I,MATCH(B189,HAMARA!E:E,0))=0,"",INDEX(HAMARA!I:I,MATCH(B189,HAMARA!E:E,0))),"") -> השקעות אחרות
A190: 378 | B190: DT707 | C190: 0 | D190: =IFERROR(IF(INDEX(HAMARA!I:I,MATCH(B190,HAMARA!E:E,0))=0,"",INDEX(HAMARA!I:I,MATCH(B190,HAMARA!E:E,0))),"") -> השקעות אחרות
A191: 378 | B191: DT708 | C191: 0 | D191: =IFERROR(IF(INDEX(HAMARA!I:I,MATCH(B191,HAMARA!E:E,0))=0,"",INDEX(HAMARA!I:I,MATCH(B191,HAMARA!E:E,0))),"") -> השקעות אחרות
A192: 378 | B192: DT709 | C192: 0 | D192: =IFERROR(IF(INDEX(HAMARA!I:I,MATCH(B192,HAMARA!E:E,0))=0,"",INDEX(HAMARA!I:I,MATCH(B192,HAMARA!E:E,0))),"") -> השקעות אחרות
A193: 378 | B193: DT710 | C193: 0 | D193: =IFERROR(IF(INDEX(HAMARA!I:I,MATCH(B193,HAMARA!E:E,0))=0,"",INDEX(HAMARA!I:I,MATCH(B193,HAMARA!E:E,0))),"") -> השקעות אחרות
A194: 378 | B194: DT711 | C194: 0 | D194: =IFERROR(IF(INDEX(HAMARA!I:I,MATCH(B194,HAMARA!E:E,0))=0,"",INDEX(HAMARA!I:I,MATCH(B194,HAMARA!E:E,0))),"") -> השקעות אחרות
A195: 378 | B195: DT712 | C195: 0 | D195: =IFERROR(IF(INDEX(HAMARA!I:I,MATCH(B195,HAMARA!E:E,0))=0,"",INDEX(HAMARA!I:I,MATCH(B195,HAMARA!E:E,0))),"") -> השקעות אחרות
A196: 378 | B196: DT713 | C196: 0 | D196: =IFERROR(IF(INDEX(HAMARA!I:I,MATCH(B196,HAMARA!E:E,0))=0,"",INDEX(HAMARA!I:I,MATCH(B196,HAMARA!E:E,0))),"") -> השקעות אחרות
A197: 378 | B197: DT714 | C197: 0 | D197: =IFERROR(IF(INDEX(HAMARA!I:I,MATCH(B197,HAMARA!E:E,0))=0,"",INDEX(HAMARA!I:I,MATCH(B197,HAMARA!E:E,0))),"") -> השקעות אחרות
A198: 378 | B198: DT715 | C198: 0 | D198: =IFERROR(IF(INDEX(HAMARA!I:I,MATCH(B198,HAMARA!E:E,0))=0,"",INDEX(HAMARA!I:I,MATCH(B198,HAMARA!E:E,0))),"") -> השקעות אחרות
A199: 378 | B199: DT716 | C199: 0 | D199: =IFERROR(IF(INDEX(HAMARA!I:I,MATCH(B199,HAMARA!E:E,0))=0,"",INDEX(HAMARA!I:I,MATCH(B199,HAMARA!E:E,0))),"") -> מניות וני"ע סחירים אחרים
A200: 378 | B200: DT717 | C200: 0 | D200: =IFERROR(IF(INDEX(HAMARA!I:I,MATCH(B200,HAMARA!E:E,0))=0,"",INDEX(HAMARA!I:I,MATCH(B200,HAMARA!E:E,0))),"") -> השקעות אחרות
... 4071 more rows

Sheet Mng (hidden)
A1: ="g"&$C1&(IF(LEN(MONTH(DATE))=1,"0"&MONTH(DATE),MONTH(DATE))&YEAR(DATE)-2000&".prn") -> g3781025.prn | B1: ="I:\EXCEL\account\Name\ALL\דוחות חודשיים לאוצר"&"\"&YEAR(DATE)&"\"&IF(LEN(MONTH(DATE))=2,MONTH(DATE),"0"&MONTH(DATE))&YEAR(DATE) -> I:\EXCEL\account\Name\ALL\דוחות חודשיים לאוצר\2025\102025 | C1: 378
A2: ="g"&$C2&(IF(LEN(MONTH(DATE))=1,"0"&MONTH(DATE),MONTH(DATE))&YEAR(DATE)-2000&".prn") -> g14331025.prn | B2: ="I:\EXCEL\account\Name\ALL\דוחות חודשיים לאוצר"&"\"&YEAR(DATE)&"\"&IF(LEN(MONTH(DATE))=2,MONTH(DATE),"0"&MONTH(DATE))&YEAR(DATE) -> I:\EXCEL\account\Name\ALL\דוחות חודשיים לאוצר\2025\102025 | C2: 1433
A3: ="g"&$C3&(IF(LEN(MONTH(DATE))=1,"0"&MONTH(DATE),MONTH(DATE))&YEAR(DATE)-2000&".prn") -> g154821025.prn | B3: ="I:\EXCEL\account\Name\ALL\דוחות חודשיים לאוצר"&"\"&YEAR(DATE)&"\"&IF(LEN(MONTH(DATE))=2,MONTH(DATE),"0"&MONTH(DATE))&YEAR(DATE) -> I:\EXCEL\account\Name\ALL\דוחות חודשיים לאוצר\2025\102025 | C3: 15482

Sheet HAMARA (hidden)
A1: מספר קבוצה בדנאל | B1: מספר אוצר | L1: MisBaOtsar | M1: FullName
A2: 21997 | B2: 811 | L2: 101 | M2: הראל אג&quot;ח עד 25% מניות
A3: 21998 | B3: 962 | E3: קוד | F3: סעיף | I3: סיווג | L3: 243 | M3: תעוז - קופת תגמולים לעצמאים, לשכירים ואישית לפיצויים
A4: 22001 | B4: 813 | F4: א. מזומנים ושווי מזומנים | L4: 547 | M4: פסגות סגנון קופת תגמולים לעצמאיים ולשכירים ואישית לפיצויים- מסלול מנייתי
A5: 22002 | B5: 814 | F5: בישראל | L5: 548 | M5: פסגות גמל אג"ח חו"ל
A6: 22003 | B6: 815 | E6: DA12 | F6: יתרות מזומנים ועו"ש בשקלים חדשים | I6: מזומנים ושווי מזומנים | L6: 549 | M6: פסגות גמל מדדית
A7: 22004 | B7: 817 | E7: DT11 | F7: יתרות מזומנים ועו"ש נקובים במט"ח | I7: מזומנים ושווי מזומנים | L7: 550 | M7: פסגות גמל שקלית
A8: 22005 | B8: 818 | E8: DA10 | F8: פח"ק /פר"י | I8: מזומנים ושווי מזומנים | L8: 229 | M8: קופת התגמולים של עובדי לאומי.
A9: 22006 | B9: 8128 | E9: DT420 | F9: פק"מ לתקופה של עד שלושה חודשים | I9: מזומנים ושווי מזומנים | L9: 225 | M9: קופת התגמולים של פקידי בנק לאומי למשכנתאות בע"מ
A10: 22007 | B10: 9730 | E10: DT421 | F10: פיקדון צמוד מדד לתקופה של עד שלושה חודשים | I10: מזומנים ושווי מזומנים | L10: 237 | M10: פסגות פיצויים כללי
A11: 22008 | B11: 9731 | E11: DT422 | F11: פיקדון צמוד מט"ח לתקופה של שלושה חודשים (פצ"מ) | I11: מזומנים ושווי מזומנים | L11: 953 | M11: מצוק קופת גמל לתגמולים לעצמאים ושכירים ואישית לפיצויים
A12: 22009 | B12: 9732 | E12: DT423 | F12: פיקדונות במט"ח לתקופה של עד שלושה חודשים | I12: מזומנים ושווי מזומנים | L12: 635 | M12: קופה לתשלום דמי מחלה
A13: 22010 | B13: 1412 | F13: בחו"ל | L13: 739 | M13: הראל גמל לפיצויים- מסלול מנייתי
A14: 22011 | B14: 7834 | E14: DT191 | F14: יתרות מזומנים ועו"ש נקובים במט"ח חו"ל | I14: מזומנים ושווי מזומנים | L14: 741 | M14: קמפ אג&quot;ח צמוד מדד
A15: 22012 | B15: 7836 | E15: DT424 | F15: פיקדונות במט"ח לתקופה של עד שלושה חודשים | I15: מזומנים ושווי מזומנים | L15: 740 | M15: הראל גמל לפיצויים- מסלול מט&quot;ח
A16: 22013 | B16: 7837 | F16: ב. ניירות ערך | L16: 742 | M16: הראל גמל לפיצויים- מסלול שיקלי
A17: 22014 | B17: 7839 | F17: 1. אגרות חוב ממשלתיות | L17: 743 | M17: הראל קמפ אג&quot;ח עד 15% מניות
A18: 22015 | B18: 7842 | F18: בישראל | L18: 775 | M18: פסגות גמל בטא (סגנון)
A19: 22016 | B19: 7843 | F19: א. סחיר | L19: 774 | M19: פסגות סגנון קופת תגמולים לעצמאיים ולשכירים ואישית לפיצויים- מסלול אג"ח
A20: 22017 | B20: 7986 | E20: DT13 | F20: אגרות חוב ממשלתיות סחירות צמודות מדד | I20: אג"ח ממשלתיות סחירות | L20: 776 | M20: פסגות סגנון קופת תגמולים לעצמאיים ולשכירים ואישית לפיצויים- מסלול כספית טווח קצר
A21: 22018 | B21: 11365 | E21: DT15 | F21: אגרות חוב ממשלתיות סחירות לא צמודות בריבית קבועה (שחר) | I21: אג"ח ממשלתיות סחירות | L21: 8761 | M21: הראל השתלמות בניהול אישי יוסף גולן
A22: 22019 | B22: 11366 | E22: DT16 | F22: אגרות חוב ממשלתיות סחירות לא צמודות בריבית משתנה (גילון) | I22: אג"ח ממשלתיות סחירות | L22: 423 | M22: קרן השתלמות של עובדי חברת חשמל
A23: 22020 | B23: 11367 | E23: DT14 | F23: אגרות חוב ממשלתיות סחירות צמודות מט"ח | I23: אג"ח ממשלתיות סחירות | L23: 989 | M23: פסגות גמל כללי ב
A24: 22021 | B24: 118 | E24: DA9 | F24: מק"מ | I24: אג"ח ממשלתיות סחירות | L24: 948 | M24: מיטב קופת תגמולים לעצמאים ולשכירים ואישית לפיצויים- מסלול טווח קצר
A25: 22022 | B25: 1413 | F25: ב. לא סחיר | L25: 944 | M25: אתגרים קופת תגמולים לעצמאים ולשכירים ואישית לפיצויים- מסלול צמוד מדד
A26: 22023 | B26: 2086 | E26: DT7 | F26: אגרות חוב מיועדות בקופות הגמל | I26: השקעות אחרות | L26: 0 | M26: אתגרים קופת תגמולים לעצמאים ולשכירים ואישית לפיצויים- מסלול כללי
A27: 22024 | B27: 963 | E27: DA8 | F27: פיקדונות חשכ"ל | I27: השקעות אחרות | L27: 950 | M27: אתגרים לפיצויים מסלולית -מסלול צמוד מדד
A28: 22025 | B28: 972 | F28: בחו"ל | L28: 952 | M28: אתגרים לפיצויים מסלולית- מסלול כללי
A29: 22026 | B29: 973 | F29: א. סחיר | L29: 874 | M29: מיטב תגמולים בע"מ מסלול כללי
A30: 22027 | B30: 1535 | E30: DT17 | F30: אגרות חוב של ממשלת ישראל שהונפקו בחו"ל | I30: אג"ח ממשלתיות סחירות | L30: 880 | M30: מיטב השתלמות בע"מ מסלול כללי
A31: 22028 | B31: 8129 | E31: DT26 | F31: אגרות חוב סחירות שהנפיקו ממשלות זרות בחו"ל | I31: אג"ח ממשלתיות סחירות | L31: 886 | M31: מיטב מרכזית לפיצויים בע"מ מסלול כללי
A32: 22029 | B32: 8679 | F32: ב. לא סחיר | L32: 1013 | M32: תמיר פישמן לתגמולים ופיצויים מסלול גמל כללי
A33: 22030 | B33: 8779 | E33: DT425 | F33: אגרות חוב לא סחירות של ממשלת ישראל שהונפקו בחו"ל | I33: השקעות אחרות | L33: 1017 | M33: תמיר פישמן השתלמות מסלול כללי
E34: DT426 | F34: אגרות חוב לא סחירות שהנפיקו ממשלות זרות בחו"ל | I34: השקעות אחרות | L34: 1018 | M34: תמיר פישמן מרכזית לפיצויים
F35: 2. תעודות חוב מסחריות | L35: 1040 | M35: שחקים כללי
F36: בישראל | L36: 1042 | M36: שחקים שקלי
F37: א. סחיר | L37: 1044 | M37: שחקים שקלי מעוף
E38: DT427 | F38: תעודות חוב מסחריות סחירות צמודות מדד בדירוג (AA-) ומעלה | I38: אג"ח קונצרניות סחירות | L38: 1035 | M38: ילין לפידות גמל אגח עד 25% מניות
E39: DT561 | F39: תעודות חוב מסחריות סחירות לא צמודות בדירוג (AA-) ומעלה | I39: אג"ח קונצרניות סחירות | L39: 1037 | M39: ילין לפידות קופות גמל אגח
E40: DT560 | F40: תעודות חוב מסחריות סחירות צמודות מט''ח בדירוג (AA-) ומעלה | I40: אג"ח קונצרניות סחירות | L40: 1036 | M40: ילין לפידות קופות גמל מנייתית
E41: DT428 | F41: תעודות חוב מסחריות סחירות צמודות מדד בדירוג (BBB:+A-) | I41: אג"ח קונצרניות סחירות | L41: 1038 | M41: ילין לפידות השתלמות אגח עד 25% מניות
E42: DT563 | F42: תעודות חוב מסחריות סחירות לא צמודות בדירוג (BBB:+A-) | I42: אג"ח קונצרניות סחירות | L42: 1039 | M42: ילין לפידות קופה מרכזית לפיצויים
E43: DT562 | F43: תעודות חוב מסחריות סחירות צמודות מט''ח בדירוג (BBB:+A-) | I43: אג"ח קונצרניות סחירות | L43: 1076 | M43: אינפיניטי תגמולים ופיצויים מס סל אגח
E44: DT429 | F44: תעודות חוב מסחריות סחירות צמודות מדד בדירוג הנמוך מ (BBB-) או לא מדורגות | I44: אג"ח קונצרניות סחירות | L44: 1077 | M44: אינפיניטי תגמולים ופיצויים מס אגח
E45: DT565 | F45: תעודות חוב מסחריות סחירות לא צמודות בדירוג הנמוך מ (BBB-) או לא מדורגות | I45: אג"ח קונצרניות סחירות | L45: 1082 | M45: אינפיניטי השת מס סל אגח
E46: DT564 | F46: תעודות חוב מסחריות סחירות צמודות מט''ח בדירוג הנמוך מ (BBB-) או לא מדורגות | I46: אג"ח קונצרניות סחירות | L46: 1083 | M46: אינפיניטי השתלמות דינמי
F47: ב. לא סחיר | L47: 1089 | M47: ינפיניטי פיצויים מסלול סל אגח
E48: DT430 | F48: תעודות חוב מסחריות לא סחירות צמודות מדד בדירוג (AA-) ומעלה | I48: השקעות אחרות | L48: 1062 | M48: איילון גמל מסלול מניות
E49: DT567 | F49: תעודות חוב מסחריות לא סחירות לא צמודות בדירוג (AA-) ומעלה | I49: השקעות אחרות | L49: 1063 | M49: איילון גמל מסלול מט"ח
E50: DT566 | F50: תעודות חוב מסחריות לא סחירות צמודות מט''ח בדירוג (AA-) ומעלה | I50: השקעות אחרות | L50: 1067 | M50: איילון גמל מסלול כללי
E51: DT431 | F51: תעודות חוב מסחריות לא סחירות צמודות מדד בדירוג (BBB:+A-) | I51: השקעות אחרות | L51: 1055 | M51: איילון השתלמות מסלול מניות
E52: DT569 | F52: תעודות חוב מסחריות לא סחירות לא צמודות בדירוג (BBB:+A-) | I52: השקעות אחרות | L52: 1056 | M52: איילון השתלמות מסלול מט"ח
E53: DT568 | F53: תעודות חוב מסחריות לא סחירות צמודות מט''ח בדירוג (BBB:+A-) | I53: השקעות אחרות | L53: 1060 | M53: איילון השתלמות מסלול כללי
E54: DT432 | F54: תעודות חוב מסחריות לא סחירות צמודות מדד בדירוג הנמוך מ (BBB-) או לא מדורגות | I54: השקעות אחרות | L54: 1069 | M54: איילון לפיצויים מסלול מט"ח
E55: DT573 | F55: תעודות חוב מסחריות לא סחירות לא צמודות בדירוג הנמוך מ (BBB-) או לא מדורגות | I55: השקעות אחרות | L55: 1070 | M55: איילון לפיצויים מסלול מדד
E56: DT572 | F56: תעודות חוב מסחריות לא סחירות צמודות מט''ח בדירוג הנמוך מ (BBB-) או לא מדורגות | I56: השקעות אחרות | L56: 1072 | M56: איילון לפיצויים מסלול כללי
E57: DT547 | F57: תעודות חוב מסחריות לא סחירות צמודות מדד בדירוג הנמוך מ (BBB-) או לא מדורגות שעומדות כנגדן בטוחה מספקת | I57: השקעות אחרות | L57: 9951 | M57: אלטשולר שחם גמל לבני 50 עד 60
E58: DT571 | F58: תעודות חוב מסחריות לא סחירות לא צמודות בדירוג הנמוך מ (BBB-) או לא מדורגות שעומדות כנגדן בטוחה מספקת | I58: השקעות אחרות | L58: 1093 | M58: אלטשולר שחם השתלמות כללי
E59: DT570 | F59: תעודות חוב מסחריות לא סחירות צמודות מט''ח בדירוג הנמוך מ (BBB-) או לא מדורגות שעומדות כנגדן בטוחה מספקת | I59: השקעות אחרות | L59: 1094 | M59: אלטשולר שחם פיצויים כללי
F60: בחו"ל | L60: 1010 | M60: תמיר פישמן תגמולים ופיצויים מסלול גמל שקלי קצר
F61: א. סחיר | L61: 1011 | M61: תמיר פישמן תגמולים ופיצויים מסלול גמל מניות
E62: DT601 | F62: תעודות חוב מסחריות סחירות בחו"ל חברות ישראליות בדירוג (A-) ומעלה | I62: אג"ח קונצרניות סחירות | L62: 1012 | M62: תמיר פישמן תגמולים ופיצויים מסלול גמל אג"ח
E63: DT602 | F63: תעודות חוב מסחריות סחירות בחו"ל חברות ישראליות בדירוג (BBB:+BBB-) | I63: אג"ח קונצרניות סחירות | L63: 1014 | M63: תמיר פישמן להשתלמות מסלול שקלי קצר
E64: DT603 | F64: תעודות חוב מסחריות סחירות בחו"ל חברות ישראליות בדירוג הנמוך מ (BBB-) או לא מדורגות | I64: אג"ח קונצרניות סחירות | L64: 1015 | M64: תמיר פישמן להשתלמות מסלול השתלמות מניות
E65: DT604 | F65: תעודות חוב מסחריות סחירות בחו"ל חברות זרות בדירוג (A-) ומעלה | I65: אג"ח קונצרניות סחירות | L65: 1016 | M65: תמיר פישמן להשתלמות מסלול השתלמות אג"ח
E66: DT605 | F66: תעודות חוב מסחריות סחירות בחו"ל חברות זרות בדירוג (BBB:+BBB-) | I66: אג"ח קונצרניות סחירות | L66: 1146 | M66: מנורה גמל כללי
E67: DT606 | F67: תעודות חוב מסחריות סחירות בחו"ל חברות זרות בדירוג הנמוך מ (BBB-) או לא מדורגות | I67: אג"ח קונצרניות סחירות | L67: 1147 | M67: מנורה גמל כללי עד 10% מניות
F68: ב. לא סחיר | L68: 1148 | M68: מנורה השתלמות כללי
E69: DT607 | F69: תעודות חוב מסחריות לא סחירות בחו"ל חברות ישראליות בדירוג (A-) ומעלה | I69: השקעות אחרות | L69: 1149 | M69: מנורה השתלמות כללי ב
E70: DT608 | F70: תעודות חוב מסחריות לא סחירות בחו"ל חברות ישראליות בדירוג (BBB:+BBB-) | I70: השקעות אחרות | L70: 1144 | M70: מנורה מרכזית לפיצויים כללי
E71: DT609 | F71: תעודות חוב מסחריות לא סחירות בחו"ל חברות ישראליות בדירוג הנמוך מ (BBB-) או לא מדורגות שעומדות כנגדן בטוחה מספקת | I71: השקעות אחרות | L71: 1145 | M71: מנורה מרכזית לפיצויים כללי עד 10% מניות
E72: DT610 | F72: תעודות חוב מסחריות לא סחירות בחו"ל חברות ישראליות בדירוג הנמוך מ (BBB-) או לא מדורגות | I72: השקעות אחרות | L72: 689 | M72: כלל מושלם תגמולים
E73: DT611 | F73: תעודות חוב מסחריות לא סחירות בחו"ל חברות זרות בדירוג (A-) ומעלה | I73: השקעות אחרות | L73: 721 | M73: כלל מושלם השתלמות
E74: DT612 | F74: תעודות חוב מסחריות לא סחירות בחו"ל חברות זרות בדירוג (BBB:+BBB-) | I74: השקעות אחרות | L74: 727 | M74: כלל מושלם פיצויים
E75: DT613 | F75: תעודות חוב מסחריות לא סחירות בחו"ל חברות זרות בדירוג הנמוך מ (BBB-) או לא מדורגות שעומדות כנגדן בטוחה מספקת | I75: השקעות אחרות | L75: 831 | M75: פסגות גמל אג"ח
E76: DT614 | F76: תעודות חוב מסחריות לא סחירות בחו"ל חברות זרות בדירוג הנמוך מ (BBB-) או לא מדורגות | I76: השקעות אחרות | L76: 707 | M76: פסגות גמל אגח
F77: 3. אגרות חוב קונצרניות | L77: 708 | M77: פסגות גמל כללי
F78: בישראל | L78: 709 | M78: פסגות גמל מניות
F79: א. סחיר | L79: 1185 | M79: פסגות השתלמות מניות
E80: DT301 | F80: אגרות חוב קונצרניות סחירות צמודות מדד בדירוג (AA-) ומעלה | I80: אג"ח קונצרניות סחירות | L80: 1183 | M80: פסגות השתלמות כללי
E81: DT303 | F81: אגרות חוב קונצרניות סחירות לא צמודות בדירוג (AA-) ומעלה | I81: אג"ח קונצרניות סחירות | L81: 1184 | M81: פסגות השתלמות אגח
E82: DT302 | F82: אגרות חוב קונצרניות סחירות צמודות מט''ח בדירוג (AA-) ומעלה | I82: אג"ח קונצרניות סחירות | L82: 875 | M82: מיטב תגמולים מסלול מדדי
E83: DT307 | F83: אגרות חוב קונצרניות סחירות צמודות מדד בדירוג (BBB:+A-) | I83: אג"ח קונצרניות סחירות | L83: 876 | M83: מיטב תגמולים מסלול שקלי
E84: DT309 | F84: אגרות חוב קונצרניות סחירות לא צמודות בדירוג (BBB:+A-) | I84: אג"ח קונצרניות סחירות | L84: 877 | M84: מיטב תגמולים מסלול מנייתי
E85: DT308 | F85: אגרות חוב קונצרניות סחירות צמודות מט''ח בדירוג (BBB:+A-) | I85: אג"ח קונצרניות סחירות | L85: 877 | M85: מיטב תגמולים מסלול מנייתי
E86: DT313 | F86: אגרות חוב קונצרניות סחירות צמודות מדד בדירוג הנמוך מ (BBB-) או לא מדורגות | I86: אג"ח קונצרניות סחירות | L86: 881 | M86: מיטב השתלמות מדד
E87: DT315 | F87: אגרות חוב קונצרניות סחירות לא צמודות בדירוג הנמוך מ (BBB-) או לא מדורגות | I87: אג"ח קונצרניות סחירות | L87: 882 | M87: מיטב השתלמות שקלי
E88: DT314 | F88: אגרות חוב קונצרניות סחירות צמודות מט''ח בדירוג הנמוך מ (BBB-) או לא מדורגות | I88: אג"ח קונצרניות סחירות | L88: 883 | M88: מיטב השתלמות מניות
E89: DT615 | F89: אגרות חוב קונצרניות אחרות בדירוג (AA-) ומעלה | I89: אג"ח קונצרניות סחירות | L89: 883 | M89: מיטב השתלמות מניות
E90: DT616 | F90: אגרות חוב קונצרניות אחרות בדירוג (BBB:+A-) | I90: אג"ח קונצרניות סחירות | L90: 9742 | M90: הראל גמל בני 50 עד 60
E91: DT617 | F91: אגרות חוב קונצרניות אחרות בדירוג הנמוך מ (BBB-) או לא מדורגות | I91: אג"ח קונצרניות סחירות | L91: 762 | M91: הראל גמל אג&quot;ח עד 10% מניות
F92: ב. לא סחיר | L92: 761 | M92: הראל גמל מניות
E93: DT319 | F93: אגרות חוב קונצרניות לא סחירות צמודות מדד בדירוג (AA-) ומעלה | I93: השקעות אחרות | L93: 567 | M93: עתידית קופות גמל בע"מ עבור כספת
E94: DT321 | F94: אגרות חוב קונצרניות לא סחירות לא צמודות בדירוג (AA-) ומעלה | I94: השקעות אחרות | L94: 154 | M94: הראל השתלמות כללי
E95: DT320 | F95: אגרות חוב קונצרניות לא סחירות צמודות מט''ח בדירוג (AA-) ומעלה | I95: השקעות אחרות | L95: 763 | M95: הראל השתלמות מניות
E96: DT325 | F96: אגרות חוב קונצרניות לא סחירות צמודות מדד בדירוג (BBB:+A-) | I96: השקעות אחרות | L96: 764 | M96: הראל השתלמות אג&quot;ח עד 10% מניות
E97: DT327 | F97: אגרות חוב קונצרניות לא סחירות לא צמודות בדירוג (BBB:+A-) | I97: השקעות אחרות | L97: 566 | M97: עתידית קופות גמל בע"מ עבור דיקן
E98: DT326 | F98: אגרות חוב קונצרניות לא סחירות צמודות מט''ח בדירוג (BBB:+A-) | I98: השקעות אחרות | L98: 155 | M98: הראל קמפ כללי
E99: DT553 | F99: אגרות חוב קונצרניות לא סחירות צמודות מדד בדירוג הנמוך מ (BBB-) או לא מדורגות שעומדות כנגדן בטוחה מספקת | I99: השקעות אחרות | L99: 568 | M99: עתידית קופות גמל בע"מ עבור צוברת
E100: DT555 | F100: אגרות חוב קונצרניות לא סחירות לא צמודות בדירוג הנמוך מ (BBB-) או לא מדורגות שעומדות כנגדן בטוחה מספקת | I100: השקעות אחרות | L100: 857 | M100: הראל דקל דמי מחלה
E101: DT554 | F101: אגרות חוב קונצרניות לא סחירות צמודות מט''ח בדירוג הנמוך מ (BBB-) או לא מדורגות שעומדות כנגדן בטוחה מספקת | I101: השקעות אחרות | L101: 1176 | M101: תמיר פישמן מרכזית לפיצויים - ערך
E102: DT337 | F102: אגרות חוב קונצרניות לא סחירות צמודות מדד בדירוג הנמוך מ (BBB-) או לא מדורגות | I102: השקעות אחרות | L102: 1192 | M102: לאומי גמל קמפ
E103: DT339 | F103: אגרות חוב קונצרניות לא סחירות לא צמודות בדירוג הנמוך מ (BBB-) או לא מדורגות | I103: השקעות אחרות | L103: 1194 | M103: קמפ ערבי
E104: DT338 | F104: אגרות חוב קונצרניות לא סחירות צמודות מט''ח בדירוג הנמוך מ (BBB-) או לא מדורגות | I104: השקעות אחרות | L104: 1193 | M104: קמפ בלמש
E105: DT618 | F105: אגרות חוב קנצרניות לא סחירות אחרות בדירוג (AA-) ומעלה | I105: השקעות אחרות | L105: 1223 | M105: פסגות פיצויים כללי ב
E106: DT619 | F106: אגרות חוב קנצרניות לא סחירות אחרות בדירוג (BBB:+A-) | I106: השקעות אחרות | L106: 1211 | M106: אינפיניטי פיצויים סל מניות
E107: DT620 | F107: אגרות חוב קנצרניות לא סחירות אחרות בדירוג הנמוך מ (BBB-) או לא מדורגות שעומדות כנגדן בטוחה מספקת | I107: השקעות אחרות | L107: 502 | M107: הראל גמל אג&quot;ח
E108: DT621 | F108: אגרות חוב קנצרניות לא סחירות אחרות בדירוג הנמוך מ (BBB-) או לא מדורגות | I108: השקעות אחרות | L108: 416 | M108: הראל השתלמות אג&quot;ח עד 20% מניות
F109: בחו"ל | L109: 518 | M109: עתידית קופות גמל בע"מ עבור כספת
F110: א. סחיר | L110: 311 | M110: עתידית קופות גמל בע"מ עבור כספת
E111: DT454 | F111: אגרות חוב סחירות שהנפיקו חברות ישראליותבחו"ל בדירוג (A-) ומעלה | I111: השקעות אחרות | L111: 504 | M111: עתידית קופות גמל בע"מ עבור כספת
E112: DT455 | F112: אגרות חוב סחירות שהנפיקו חברות ישראליותבחו"ל בדירוג (BBB:+BBB-) | I112: השקעות אחרות | L112: 1255 | M112: מנורה גמל מניות
E113: DT456 | F113: אגרות חוב סחירות שהנפיקו חברות ישראליותבחו"ל בדירוג הנמוך מ (BBB-) או לא מדורגות | I113: אג"ח קונצרניות סחירות | L113: 1256 | M113: מנורה השתלמות מניות
E114: DT457 | F114: אגרות חוב סחירות שהנפיקו חברות זרות בחו"ל בדירוג (A-) ומעלה | I114: אג"ח קונצרניות סחירות | L114: 1059 | M114: פסגות השתלמות כללי ב
E115: DT458 | F115: אגרות חוב סחירות שהנפיקו חברות זרות בחו"ל בדירוג (BBB:+BBB-) | I115: אג"ח קונצרניות סחירות | L115: 599 | M115: מגדל קהל השתלמות מסלול מעוז כללי
E116: DT459 | F116: אגרות חוב סחירות שהנפיקו חברות זרות בחו"ל בדירוג הנמוך מ (BBB-) או לא מדורגות | I116: אג"ח קונצרניות סחירות | L116: 858 | M116: מגדל לתגמולים ולפיצויים שקלי קצר
F117: ב. לא סחיר | L117: 859 | M117: מגדל לתגמולים ולפיצויים אג&quot;ח ממשלתי
E118: DT460 | F118: אגרות חוב לא סחירות שהנפיקו חברות ישראליות בחו"ל בדירוג (A-) ומעלה | I118: השקעות אחרות | L118: 860 | M118: מגדל לתגמולים צמוד מדד
E119: DT461 | F119: אגרות חוב לא סחירות שהנפיקו חברות ישראליות בחו"ל בדירוג (BBB:+BBB-) | I119: השקעות אחרות | L119: 861 | M119: מגדל פלטינום גמל מסלול פלטינום
E120: DT462 | F120: אגרות חוב לא סחירות שהנפיקו חברות ישראליות בחו"ל בדירוג הנמוך מ (BBB-) או לא מדורגות | I120: השקעות אחרות | L120: 862 | M120: מגדל לתגמולים ולפיצויים חול
E121: DT558 | F121: אגרות חוב לא סחירות שהנפיקו חברות ישראליות בחו"ל בדירוג הנמוך מ (BBB-) או לא מדורגות שעומדות כנגדן בטוחה מספקת | I121: השקעות אחרות | L121: 863 | M121: מגדל לתגמולים ולפיצויים מנייתי
E122: DT463 | F122: אגרות חוב לא סחירות שהנפיקו חברות זרות בחו"ל בדירוג (A-) ומעלה | I122: השקעות אחרות | L122: 974 | M122: מגדל פלטינום גמל כללי
E123: DT464 | F123: אגרות חוב לא סחירות שהנפיקו חברות זרות בחו"ל בדירוג (BBB:+BBB-) | I123: השקעות אחרות | L123: 974 | M123: מגדל פלטינום גמל כללי
E124: DT465 | F124: אגרות חוב לא סחירות שהנפיקו חברות זרות בחו"ל בדירוג הנמוך מ (BBB-) או לא מדורגות | I124: השקעות אחרות | L124: 1156 | M124: מגדל לתגמולים ולפיצויים ביג כללי
E125: DT559 | F125: אגרות חוב לא סחירות שהנפיקו חברות זרות בחו"ל בדירוג הנמוך מ (BBB-) או לא מדורגות שעומדות כנגדן בטוחה מספקת | I125: השקעות אחרות | L125: 864 | M125: מגדל השתלמות שקלי קצר
F126: 4. מניות | L126: 865 | M126: מגדל השתלמות מסלול אג&quot;ח ממשלתי
F127: בישראל | L127: 866 | M127: מגדל השתלמות צמוד מדד
F128: א. סחיר | L128: 867 | M128: מגדל פלטי השתל מס פלטינום
E129: DT402 | F129: מניות השייכות למדד ת"א 25 | I129: מניות וני"ע סחירים אחרים | L129: 868 | M129: מגדל השתלמות חול
E130: DT403 | F130: מניות השייכות למדד ת"א 75 | I130: מניות וני"ע סחירים אחרים | L130: 869 | M130: מגדל השתלמות מנייתי
E131: DT404 | F131: מניות היתר | I131: מניות וני"ע סחירים אחרים | L131: 975 | M131: מגדל פלטי השתל כללי
E132: DT405 | F132: מניות זרות הנסחרות בארץ | I132: השקעות אחרות | L132: 1157 | M132: מגדל השתלמות ביג כללי
E133: DT172 | F133: אופציות 001 call (long) | I133: השקעות אחרות | L133: 1162 | M133: ילין לפידות השתלמות כללי
E134: DT205 | F134: אופציות 001 call (short) | I134: השקעות אחרות | L134: 9940 | M134: ילין לפידות גמל לבני 50 עד 60
F135: ב. לא סחיר | L135: 9789 | M135: מור מנורה מבטחים בני 50 ומטה
E136: DC9 | F136: מניות לא סחירות | I136: השקעות אחרות | L136: 9791 | M136: מור מנורה מבטחים בני 60 ומעלה
F137: בחו"ל | L137: 1294 | M137: מור מנורה מבטחים מסלול מניות
F138: א. סחיר | L138: 1068 | M138: איילון גמל מסלול טווח קצר
E139: DT28 | F139: מניות של חברות ישראליות שנסחרות בחו"ל | I139: מניות וני"ע סחירים אחרים | L139: 1061 | M139: איילון השתלמות מסלול טווח קצר
E140: DT30 | F140: מניות סחירות של תאגיד תושב חוץ בשיעור החזקה של עד 10% בחו"ל | I140: מניות וני"ע סחירים אחרים | L140: 1319 | M140: ילין לפידות השתלמות אגח
E141: DT81 | F141: מניות סחירות של תאגיד תושב חוץ בשיעור החזקה של 10% ומעלה בחו"ל | I141: מניות וני"ע סחירים אחרים | L141: 1336 | M141: תעוז - קופת תגמולים לעצמאים, לשכירים ואישית לפיצויים
F142: ב. לא סחיר | L142: 1337 | M142: תעוז - קופת תגמולים לעצמאים, לשכירים ואישית לפיצויים
E143: DT622 | F143: מניות לא סחירות של חברות ישראליות שנסחרות בחו"ל | I143: השקעות אחרות | L143: 1334 | M143: הראל גמל שיקלי קצר
E144: DT83 | F144: מניות לא סחירות של חברות זרות בחו"ל | I144: השקעות אחרות | L144: 1335 | M144: הראל גמל אג&quot;ח ללא מניות
F145: 5. השקעה בתעודות סל | L145: 1309 | M145: פסגות עתיד גמל מרכזית להשתתפות בפנסיה תקציבית
F146: נסחרות בארץ | L146: 1225 | M146: פסגות פיצויים מסלול אג"ח
E147: DT360 | F147: השקעה בתעודות סל שמחקות מדדי מניות בארץ | I147: מניות וני"ע סחירים אחרים | L147: 1343 | M147: מנורה גמל טווח קצר
E148: DT361 | F148: השקעה בתעודות סל שמחקות מדדי מניות בחו"ל | I148: מניות וני"ע סחירים אחרים | L148: 1344 | M148: מנורה גמל מסלול אגח ממשלתי
E149: DT362 | F149: השקעה בתעודות סל שמחקות מדדי אג"ח בארץ | I149: מניות וני"ע סחירים אחרים | L149: 1345 | M149: מנורה גמל לפרישה שנת 2020
E150: DT363 | F150: השקעה בתעודות סל שמחקות מדדי אג"ח בחו"ל | I150: מניות וני"ע סחירים אחרים | L150: 1346 | M150: מנורה גמל לפרישה שנת 2030
E151: DT406 | F151: השקעה בתעודות סל בחסר בארץ | I151: מניות וני"ע סחירים אחרים | L151: 1360 | M151: ילין לפידות קופות גמל אגח ממשלתי
E152: DT623 | F152: השקעה בתעודות סל אחרות בארץ | I152: מניות וני"ע סחירים אחרים | L152: 1361 | M152: ילין לפידות השתלמות אגח ממשלתי
F153: נסחרות בחו"ל | L153: 1368 | M153: הראל גמל שקלי
E154: DT366 | F154: השקעה בתעודות סל שנסחרות בחו"ל שמחקות מדדי מניות | I154: מניות וני"ע סחירים אחרים | L154: 1369 | M154: הראל השתלמות שקלי
E155: DT367 | F155: השקעה בתעודות סל שנסחרות בחו"ל שמחקות מדדי אג"ח | I155: מניות וני"ע סחירים אחרים | L155: 1374 | M155: מנורה מרכזית לפיצויים ללא מניות
E156: DT407 | F156: השקעה בתעודות סל בחסר בחו"ל | I156: מניות וני"ע סחירים אחרים | L156: 1398 | M156: אלטשולר שחם השתלמות כספי
E157: DT624 | F157: השקעה בתעודות סל אחרות בחו"ל | I157: מניות וני"ע סחירים אחרים | L157: 1399 | M157: אלטשולר שחם השתלמות אגח ממשלות
F158: 6. תעודות השתתפות בקרנות נאמנות | I158: מניות וני"ע סחירים אחרים | L158: 1394 | M158: אלטשולר שחם גמל כספי
F159: בישראל | I159: מניות וני"ע סחירים אחרים | L159: 1395 | M159: אלטשולר שחם גמל אגח ממשלות
E160: DB10 | F160: תעודות השתתפות בקרן נאמנות | I160: מניות וני"ע סחירים אחרים | L160: 1172 | M160: תמיר פישמן תגמולים ופיצויים מסלול גמל אג"ח 2
F161: בחו"ל | I161: מניות וני"ע סחירים אחרים | L161: 1175 | M161: תמיר פישמן להשתלמות מסלול השתלמות אג"ח 2
E162: DT701 | F162: תעודות השתתפות בקרנות נאמנות- אג"ח קונצרני | I162: מניות וני"ע סחירים אחרים | L162: 1424 | M162: פסגות השתלמות עד 10% במניות
E163: DT702 | F163: תעודות השתתפות בקרנות נאמנות- אג"ח ממשלתי | I163: מניות וני"ע סחירים אחרים | L163: 1425 | M163: פסגות השתלמות כספית
E164: DT703 | F164: תעודות השתתפות בקרנות נאמנות- מניות | I164: מניות וני"ע סחירים אחרים | L164: 1426 | M164: פסגות השתלמות אגח מדינה
E165: DT704 | F165: תעודות השתתפות בקרנות נאמנות- אחר | I165: מניות וני"ע סחירים אחרים | L165: 1422 | M165: פסגות גמל כספית
F166: 7. קרנות השקעה | L166: 1423 | M166: פסגות גמל אגח מדינה
F167: בישראל | L167: 1155 | M167: תמיר פישמן מרכזית לפיצויים אגח (דולרי לשעבר
E168: DT53 | F168: קרנות הון סיכון | I168: השקעות אחרות | L168: 1064 | M168: איילון גמל מסלול מדד
E169: DT466 | F169: קרנות גידור | I169: השקעות אחרות | L169: 1057 | M169: איילון השתלמות מסלול מדד
E170: DT225 | F170: קרנות נדל"ן | I170: השקעות אחרות | L170: 1110 | M170: מנורה השתלמות מדדי
E171: DT52 | F171: קרנות השקעה אחרות | I171: השקעות אחרות | L171: 1484 | M171: הראל גמל אגח קונצרני
F172: בחו"ל | L172: 1485 | M172: הראל השתלמות אג&quot;ח
E173: DT89 | F173: קרנות הון סיכון בחו"ל | I173: השקעות אחרות | L173: 1114 | M173: מנורה השתלמות שקלי
E174: DT467 | F174: קרנות גידור בחו"ל | I174: השקעות אחרות | L174: 820 | M174: קמפ פליינג קרגו
E175: DT226 | F175: קרנות נדל"ן בחו"ל | I175: השקעות אחרות | L175: 820 | M175: קמפ פליינג קרגו - תובלה בינלאומית
E176: DT88 | F176: קרנות השקעה אחרות בחו"ל | I176: השקעות אחרות | L176: 820 | M176: הראל פרופיל סטולין
F177: 8. כתבי אופציה (WARRANTS) | L177: 820 | M177: הראל פרופיל סטונהיג
F178: בישראל | L178: 820 | M178: הראל פרופיל שרותי בריאות
F179: א. סחיר | L179: 820 | M179: הראל פרופיל אשמורת ISS
E180: DB5 | F180: כתבי אופציות סחירים | I180: מניות וני"ע סחירים אחרים | L180: 1516 | M180: תמיר פישמן גמל מניות ישראל
F181: ב. לא סחיר | L181: 1517 | M181: תמיר פישמן גמל מניות חו"ל
E182: DT439 | F182: כתבי אופציה לא סחיר | I182: השקעות אחרות | L182: 1518 | M182: תמיר פישמן השתלמות מניות ישראל
F183: בחו"ל | L183: 1519 | M183: תמיר פישמן השתלמות מניות חו"ל
F184: א. סחיר | L184: 1524 | M184: הראל גמל כהלכה
E185: DT211 | F185: כתבי אופציות סחירים בחו"ל | I185: השקעות אחרות | L185: 1523 | M185: הראל השתלמות כהלכה
F186: ב. לא סחיר | L186: 1523 | M186: הראל השתלמות כהלכה
E187: DT440 | F187: כתבי אופציות לא סחירים בחו"ל | I187: השקעות אחרות | L187: 389 | M187: קרן גמלאות עוד
F188: 9. חוזים עתידיים | L188: 7232 | M188: אינפיניטי גמל לבני 50 עד 60
F189: בישראל | L189: 1078 | M189: אינפיניטי גמל סל אגח
F190: א. סחיר | L190: 1079 | M190: אינפיניטי גמל מניות בישראל
E191: DT749 | F191: חוזים עתידיים סחירים - FUTURES | I191: השקעות אחרות | L191: 1209 | M191: אינפיניטי גמל אגח ממשלת ישראל
F192: ב. לא סחיר | L192: 1490 | M192: אינפיניטי גמל מסלול אגח קונצרני
E193: DT441 | F193: חוזים עתידיים על מדדים כולל מניות (FORWARD, SWAP) לא סחירים | I193: השקעות אחרות | L193: 1084 | M193: אינפיניטי השתלמות סל אגח
E194: DT442 | F194: חוזים עתידיים על ש"ח/מט"ח (FORWARD, SWAP) לא סחירים | I194: השקעות אחרות | L194: 1085 | M194: אינפיניטי השתלמות מניות בישראל
E195: DT443 | F195: חוזים עתידיים על מט"ח/מט"ח (FORWARD, SWAP) לא סחירים | I195: השקעות אחרות | L195: 1210 | M195: אינפיניטי השתלמות אגח ממשלת ישראל
E196: DT444 | F196: חוזים עתידיים על ריבית (FORWARD, SWAP) לא סחירים | I196: השקעות אחרות | L196: 1491 | M196: אינפיניטי השתלמות אגח קונצרני
E197: DT445 | F197: חוזים עתידיים אחרים (FORWARD, SWAP) לא סחירים | I197: השקעות אחרות | L197: 1095 | M197: אינפיניטי פיצויים סל אגח
F198: בחו"ל | L198: 107 | M198: תגב כללי בנאמנות ע"י הלמן אלדובי
F199: א. סחיר | L199: 594 | M199: תגב מדדי טווח בינוני בנאמנות ע"י הלמן אלדובי
E200: DT212 | F200: חוזים עתידיים סחירים - FUTURES בחו"ל | I200: השקעות אחרות | L200: 595 | M200: תגב מנייתי בנאמנות ע"י הלמן אלדובי
... 1001 more rows
